{"text_format":"1","workbook":"xlsx","n_sheets":3,"sheets":["宿泊税納入申告書","宿泊税月計表","宿泊税納入書"],"not_rendered":{"charts":0,"images":0,"macros":1,"external_links":0,"defined_names":9,"comments":1,"pivot_tables":0},"unopened":[],"bounds":{"document_bytes":16777216,"sheet_cells":100000,"rows_first":2000,"rows_last":500,"rows_between":2000,"halvings":0,"cell_chars":16384,"cell_head_chars":4096},"cells_cut":0,"cells_raw":0,"read":"whole","date_system":"1900"}

{"sheet":"宿泊税納入申告書","index":0,"n_rows":42,"n_cols":93,"rows_kept":42,"cut":false,"hidden":false,"merged":[[2,67,2,68],[3,1,3,23],[9,40,9,42],[9,43,9,45],[9,46,9,48],[9,49,9,51],[1,1,1,66],[2,50,2,53],[2,54,2,56],[2,57,2,58],[2,59,2,61],[2,62,2,63],[2,64,2,66],[5,1,5,69],[7,11,9,16],[7,18,7,29],[7,31,7,69],[8,18,8,29],[8,31,8,69],[9,18,9,29],[9,31,9,33],[9,52,9,54],[9,55,9,57],[9,58,9,60],[9,61,9,63],[9,64,9,66],[9,67,9,69],[9,34,9,36],[9,37,9,39],[13,1,13,7],[13,8,13,14],[13,15,13,42],[13,43,13,51],[13,52,13,58],[13,59,13,69],[10,11,12,16],[10,18,10,29],[10,31,10,69],[11,18,11,29],[11,31,11,69],[12,18,12,29],[12,31,12,33],[12,34,12,36],[12,37,12,39],[12,40,12,42],[12,43,12,45],[12,46,12,48],[12,49,12,51],[12,52,12,54],[12,55,12,57],[12,58,12,60],[12,61,12,63],[12,64,12,66],[14,15,20,17],[17,59,17,67],[17,68,17,69],[14,59,14,67],[14,68,14,69],[12,67,12,69],[18,9,20,12],[18,13,20,14],[18,43,18,49],[18,50,18,51],[20,43,20,49],[20,50,20,51],[20,52,20,58],[20,59,20,67],[20,68,20,69],[18,52,18,58],[18,59,18,67],[18,68,18,69],[19,43,19,49],[19,50,19,51],[19,52,19,58],[19,59,19,67],[19,68,19,69],[18,18,20,19],[15,9,17,12],[15,13,17,14],[15,43,15,49],[15,50,15,51],[15,52,15,58],[15,59,15,67],[15,68,15,69],[17,43,17,49],[17,50,17,51],[17,52,17,58],[14,18,17,19],[22,15,22,42],[22,43,22,49],[22,50,22,51],[22,52,22,58],[22,59,22,67],[22,68,22,69],[25,68,25,69],[21,15,21,42],[21,43,21,49],[21,50,21,51],[21,52,21,58],[21,59,21,69],[27,9,29,12],[27,13,29,14],[27,43,27,49],[27,50,27,51],[29,43,29,49],[29,50,29,51],[26,43,26,49],[26,50,26,51],[26,52,26,58],[24,9,26,12],[24,13,26,14],[24,43,24,49],[24,50,24,51],[24,52,24,58],[25,43,25,49],[25,50,25,51],[25,52,25,58],[27,52,27,58],[27,59,27,67],[27,68,27,69],[28,43,28,49],[28,50,28,51],[28,52,28,58],[28,59,28,67],[28,68,28,69],[23,15,29,17],[23,18,26,19],[27,18,29,19],[26,59,26,67],[26,68,26,69],[23,68,23,69],[24,59,24,67],[24,68,24,69],[23,43,23,49],[23,50,23,51],[23,52,23,58],[23,59,23,67],[25,59,25,67],[31,68,31,69],[34,68,34,69],[29,52,29,58],[29,59,29,67],[29,68,29,69],[30,15,30,42],[30,43,30,49],[30,50,30,51],[30,52,30,58],[30,59,30,69],[32,59,32,67],[34,43,34,49],[34,50,34,51],[34,52,34,58],[34,59,34,67],[31,15,31,42],[31,43,31,49],[31,50,31,51],[31,52,31,58],[31,59,31,67],[36,9,38,12],[36,13,38,14],[36,43,36,49],[36,50,36,51],[38,43,38,49],[38,50,38,51],[35,43,35,49],[35,50,35,51],[35,52,35,58],[33,9,35,12],[33,13,35,14],[33,43,33,49],[33,50,33,51],[33,52,33,58],[39,15,39,42],[39,43,39,49],[39,50,39,51],[39,52,39,58],[39,59,39,69],[36,52,36,58],[36,59,36,67],[36,68,36,69],[37,43,37,49],[37,50,37,51],[37,52,37,58],[37,59,37,67],[37,68,37,69],[32,15,38,17],[32,18,35,19],[36,18,38,19],[35,59,35,67],[35,68,35,69],[32,68,32,69],[33,59,33,67],[33,68,33,69],[32,43,32,49],[32,50,32,51],[32,52,32,58],[41,1,41,42],[41,43,41,49],[41,50,41,51],[41,52,41,58],[41,59,41,67],[41,68,41,69],[40,15,40,42],[40,43,40,49],[40,50,40,51],[40,52,40,58],[40,59,40,67],[40,68,40,69],[14,1,40,7],[14,43,14,49],[14,50,14,51],[14,52,14,58],[16,43,16,49],[16,50,16,51],[16,52,16,58],[16,59,16,67],[16,68,16,69],[38,52,38,58],[38,59,38,67],[38,68,38,69]]}
[]
[null,"第２号様式"]
[null,null,null,null,null,null,null,null,null,null,null,null,null,null,null,null,null,null,null,null,null,null,null,null,null,null,null,null,null,null,null,null,null,null,null,null,null,null,null,null,null,null,null,null,null,null,null,null,null,null,"令和",null,null,null,{"$f":"+IF(宿泊税月計表!BZ2=\"\",\"\",宿泊税月計表!BZ2)","v":""},null,null,"年",null,{"$f":"+IF(宿泊税月計表!CF2=\"\",\"\",宿泊税月計表!CF2)","v":""},null,null,"月",null,{"$f":"+IF(宿泊税月計表!CL2=\"\",\"\",宿泊税月計表!CL2)","v":""},null,null,"日"]
[null,"（宛先）函館市長"]
[]
[null,"宿泊税納入申告書"]
[]
[null,null,null,null,null,null,null,null,null,null,null,"特別徴収\n義 務 者",null,null,null,null,null,null,"住 所 （ 所 在 地 ）",null,null,null,null,null,null,null,null,null,null,null,null,{"$f":"+IF(宿泊税月計表!S2=\"\",\"\",宿泊税月計表!S2)","v":""}]
[null,null,null,null,null,null,null,null,null,null,null,null,null,null,null,null,null,null,"氏名(名称)･代表者の氏名",null,null,null,null,null,null,null,null,null,null,null,null,{"$f":"+IF(宿泊税月計表!S3=\"\",\"\",宿泊税月計表!S3)","v":""}]
[null,null,null,null,null,null,null,null,null,null,null,null,null,null,null,null,null,null,"個人番号または法人番号\n（右詰で記載）",null,null,null,null,null,null,null,null,null,null,null,null,{"$f":"+IF(宿泊税月計表!S4=\"\",\"\",宿泊税月計表!S4)","v":""},null,null,{"$f":"+IF(宿泊税月計表!V4=\"\",\"\",宿泊税月計表!V4)","v":""},null,null,{"$f":"+IF(宿泊税月計表!Y4=\"\",\"\",宿泊税月計表!Y4)","v":""},null,null,{"$f":"+IF(宿泊税月計表!AB4=\"\",\"\",宿泊税月計表!AB4)","v":""},null,null,{"$f":"+IF(宿泊税月計表!AE4=\"\",\"\",宿泊税月計表!AE4)","v":""},null,null,{"$f":"+IF(宿泊税月計表!AH4=\"\",\"\",宿泊税月計表!AH4)","v":""},null,null,{"$f":"+IF(宿泊税月計表!AK4=\"\",\"\",宿泊税月計表!AK4)","v":""},null,null,{"$f":"+IF(宿泊税月計表!AN4=\"\",\"\",宿泊税月計表!AN4)","v":""},null,null,{"$f":"+IF(宿泊税月計表!AQ4=\"\",\"\",宿泊税月計表!AQ4)","v":""},null,null,{"$f":"+IF(宿泊税月計表!AT4=\"\",\"\",宿泊税月計表!AT4)","v":""},null,null,{"$f":"+IF(宿泊税月計表!AW4=\"\",\"\",宿泊税月計表!AW4)","v":""},null,null,{"$f":"+IF(宿泊税月計表!AZ4=\"\",\"\",宿泊税月計表!AZ4)","v":""},null,null,{"$f":"+IF(宿泊税月計表!BC4=\"\",\"\",宿泊税月計表!BC4)","v":""}]
[null,null,null,null,null,null,null,null,null,null,null,"宿泊施設",null,null,null,null,null,null,"所在地",null,null,null,null,null,null,null,null,null,null,null,null,{"$f":"+IF(宿泊税月計表!S5=\"\",\"\",宿泊税月計表!S5)","v":""}]
[null,null,null,null,null,null,null,null,null,null,null,null,null,null,null,null,null,null,"名称",null,null,null,null,null,null,null,null,null,null,null,null,{"$f":"+IF(宿泊税月計表!S6=\"\",\"\",宿泊税月計表!S6)","v":""}]
[null,null,null,null,null,null,null,null,null,null,null,null,null,null,null,null,null,null,"指定番号",null,null,null,null,null,null,null,null,null,null,null,null,{"$f":"+IF(宿泊税月計表!S7=\"\",\"\",宿泊税月計表!S7)","v":""},null,null,{"$f":"+IF(宿泊税月計表!V7=\"\",\"\",宿泊税月計表!V7)","v":""},null,null,{"$f":"+IF(宿泊税月計表!Y7=\"\",\"\",宿泊税月計表!Y7)","v":""},null,null,{"$f":"+IF(宿泊税月計表!AB7=\"\",\"\",宿泊税月計表!AB7)","v":""},null,null,{"$f":"+IF(宿泊税月計表!AE7=\"\",\"\",宿泊税月計表!AE7)","v":""},null,null,{"$f":"+IF(宿泊税月計表!AH7=\"\",\"\",宿泊税月計表!AH7)","v":""},null,null,{"$f":"+IF(宿泊税月計表!AK7=\"\",\"\",宿泊税月計表!AK7)","v":""},null,null,{"$f":"+IF(宿泊税月計表!AN7=\"\",\"\",宿泊税月計表!AN7)","v":""},null,null,{"$f":"+IF(宿泊税月計表!AQ7=\"\",\"\",宿泊税月計表!AQ7)","v":""},null,null,{"$f":"+IF(宿泊税月計表!AT7=\"\",\"\",宿泊税月計表!AT7)","v":""},null,null,{"$f":"+IF(宿泊税月計表!AW7=\"\",\"\",宿泊税月計表!AW7)","v":""},null,null,{"$f":"+IF(宿泊税月計表!AZ7=\"\",\"\",宿泊税月計表!AZ7)","v":""},null,null,{"$f":"+IF(宿泊税月計表!BC7=\"\",\"\",宿泊税月計表!BC7)","v":""}]
[null,"税　目",null,null,null,null,null,null,"宿泊年月",null,null,null,null,null,null,"区　　　　　分",null,null,null,null,null,null,null,null,null,null,null,null,null,null,null,null,null,null,null,null,null,null,null,null,null,null,null,"宿泊数",null,null,null,null,null,null,null,null,"税　率",null,null,null,null,null,null,"税　　額"]
[null,"宿泊税",null,null,null,null,null,null,null,null,null,null,null,null,null,"課税対象",null,null,"一\n般\n客",null,"１人１泊２万円未満",null,null,null,null,null,null,null,null,null,null,null,null,null,null,null,null,null,null,null,null,null,null,{"$f":"+IF(宿泊税月計表!G52=0,\"\",宿泊税月計表!G52)","v":""},null,null,null,null,null,null,"泊",null,"  200円",null,null,null,null,null,null,{"$f":"IF(AR15=\"\",\"\",AR15*200)","v":""},null,null,null,null,null,null,null,null,"円"]
[null,null,null,null,null,null,null,null,null,{"$f":"+IF(宿泊税月計表!CF3=\"\",\"\",宿泊税月計表!CF3)","v":""},null,null,null,"年",null,null,null,null,null,null,"１人１泊２万円以上５万円未満",null,null,null,null,null,null,null,null,null,null,null,null,null,null,null,null,null,null,null,null,null,null,{"$f":"+IF(宿泊税月計表!L52=0,\"\",宿泊税月計表!L52)","v":""},null,null,null,null,null,null,"泊",null,"  400円",null,null,null,null,null,null,{"$f":"IF(AR16=\"\",\"\",AR16*400)","v":""},null,null,null,null,null,null,null,null,"円"]
[null,null,null,null,null,null,null,null,null,null,null,null,null,null,null,null,null,null,null,null,"１人１泊５万円以上10万円未満",null,null,null,null,null,null,null,null,null,null,null,null,null,null,null,null,null,null,null,null,null,null,{"$f":"+IF(宿泊税月計表!Q52=0,\"\",宿泊税月計表!Q52)","v":""},null,null,null,null,null,null,"泊",null,"1,000円",null,null,null,null,null,null,{"$f":"IF(AR17=\"\",\"\",AR17*1000)","v":""},null,null,null,null,null,null,null,null,"円"]
[null,null,null,null,null,null,null,null,null,null,null,null,null,null,null,null,null,null,null,null,"１人１泊10万円以上",null,null,null,null,null,null,null,null,null,null,null,null,null,null,null,null,null,null,null,null,null,null,{"$f":"+IF(宿泊税月計表!V52=0,\"\",宿泊税月計表!V52)","v":""},null,null,null,null,null,null,"泊",null,"2,500円",null,null,null,null,null,null,{"$f":"IF(AR18=\"\",\"\",AR18*2500)","v":""},null,null,null,null,null,null,null,null,"円"]
[null,null,null,null,null,null,null,null,null,{"$f":"+IF(宿泊税月計表!CL3=\"\",\"\",宿泊税月計表!CL3)","v":""},null,null,null,"月",null,null,null,null,"各\n種\n大\n会",null,"１人１泊２万円未満",null,null,null,null,null,null,null,null,null,null,null,null,null,null,null,null,null,null,null,null,null,null,{"$f":"+IF(宿泊税月計表!AA52=0,\"\",宿泊税月計表!AA52)","v":""},null,null,null,null,null,null,"泊",null,"  100円",null,null,null,null,null,null,{"$f":"IF(AR19=\"\",\"\",AR19*100)","v":""},null,null,null,null,null,null,null,null,"円"]
[null,null,null,null,null,null,null,null,null,null,null,null,null,null,null,null,null,null,null,null,"１人１泊２万円以上５万円未満",null,null,null,null,null,null,null,null,null,null,null,null,null,null,null,null,null,null,null,null,null,null,{"$f":"+IF(宿泊税月計表!AF52=0,\"\",宿泊税月計表!AF52)","v":""},null,null,null,null,null,null,"泊",null,"  200円",null,null,null,null,null,null,{"$f":"IF(AR20=\"\",\"\",AR20*200)","v":""},null,null,null,null,null,null,null,null,"円"]
[null,null,null,null,null,null,null,null,null,null,null,null,null,null,null,null,null,null,null,null,"１人１泊５万円以上",null,null,null,null,null,null,null,null,null,null,null,null,null,null,null,null,null,null,null,null,null,null,{"$f":"+IF(宿泊税月計表!AK52=0,\"\",宿泊税月計表!AK52)","v":""},null,null,null,null,null,null,"泊",null,"　500円",null,null,null,null,null,null,{"$f":"IF(AR21=\"\",\"\",AR21*500)","v":""},null,null,null,null,null,null,null,null,"円"]
[null,null,null,null,null,null,null,null,null,null,null,null,null,null,null,"課　税　対　象　外",null,null,null,null,null,null,null,null,null,null,null,null,null,null,null,null,null,null,null,null,null,null,null,null,null,null,null,{"$f":"+IF(宿泊税月計表!AP53=0,\"\",宿泊税月計表!AP53)","v":""},null,null,null,null,null,null,"泊"]
[null,null,null,null,null,null,null,null,null,null,null,null,null,null,null,"小　　　　　　　計",null,null,null,null,null,null,null,null,null,null,null,null,null,null,null,null,null,null,null,null,null,null,null,null,null,null,null,{"$f":"IF(SUM(AR15:AX22)=0,\"\",SUM(AR15:AX22))","v":""},null,null,null,null,null,null,"泊",null,null,null,null,null,null,null,null,{"$f":"IF(SUM(BH15:BP21)=0,\"\",SUM(BH15:BP21))","v":""},null,null,null,null,null,null,null,null,"円"]
[null,null,null,null,null,null,null,null,null,null,null,null,null,null,null,"課税対象",null,null,"一\n般\n客",null,"１人１泊２万円未満",null,null,null,null,null,null,null,null,null,null,null,null,null,null,null,null,null,null,null,null,null,null,{"$f":"+IF(宿泊税月計表!BK52=0,\"\",宿泊税月計表!BK52)","v":""},null,null,null,null,null,null,"泊",null,"  200円",null,null,null,null,null,null,{"$f":"IF(AR24=\"\",\"\",AR24*200)","v":""},null,null,null,null,null,null,null,null,"円"]
[null,null,null,null,null,null,null,null,null,{"$f":"+IF(宿泊税月計表!CW13=\"\",\"\",宿泊税月計表!CW13)","v":""},null,null,null,"年",null,null,null,null,null,null,"１人１泊２万円以上５万円未満",null,null,null,null,null,null,null,null,null,null,null,null,null,null,null,null,null,null,null,null,null,null,{"$f":"+IF(宿泊税月計表!BP52=0,\"\",宿泊税月計表!BP52)","v":""},null,null,null,null,null,null,"泊",null,"  400円",null,null,null,null,null,null,{"$f":"IF(AR25=\"\",\"\",AR25*400)","v":""},null,null,null,null,null,null,null,null,"円"]
[null,null,null,null,null,null,null,null,null,null,null,null,null,null,null,null,null,null,null,null,"１人１泊５万円以上10万円未満",null,null,null,null,null,null,null,null,null,null,null,null,null,null,null,null,null,null,null,null,null,null,{"$f":"+IF(宿泊税月計表!BU52=0,\"\",宿泊税月計表!BU52)","v":""},null,null,null,null,null,null,"泊",null,"1,000円",null,null,null,null,null,null,{"$f":"IF(AR26=\"\",\"\",AR26*1000)","v":""},null,null,null,null,null,null,null,null,"円"]
[null,null,null,null,null,null,null,null,null,null,null,null,null,null,null,null,null,null,null,null,"１人１泊10万円以上",null,null,null,null,null,null,null,null,null,null,null,null,null,null,null,null,null,null,null,null,null,null,{"$f":"+IF(宿泊税月計表!BZ52=0,\"\",宿泊税月計表!BZ52)","v":""},null,null,null,null,null,null,"泊",null,"2,500円",null,null,null,null,null,null,{"$f":"IF(AR27=\"\",\"\",AR27*2500)","v":""},null,null,null,null,null,null,null,null,"円"]
[null,null,null,null,null,null,null,null,null,{"$f":"+IF(宿泊税月計表!DB13=\"\",\"\",宿泊税月計表!DB13)","v":""},null,null,null,"月",null,null,null,null,"各\n種\n大\n会",null,"１人１泊２万円未満",null,null,null,null,null,null,null,null,null,null,null,null,null,null,null,null,null,null,null,null,null,null,{"$f":"+IF(宿泊税月計表!CE52=0,\"\",宿泊税月計表!CE52)","v":""},null,null,null,null,null,null,"泊",null,"  100円",null,null,null,null,null,null,{"$f":"IF(AR28=\"\",\"\",AR28*100)","v":""},null,null,null,null,null,null,null,null,"円"]
[null,null,null,null,null,null,null,null,null,null,null,null,null,null,null,null,null,null,null,null,"１人１泊２万円以上５万円未満",null,null,null,null,null,null,null,null,null,null,null,null,null,null,null,null,null,null,null,null,null,null,{"$f":"+IF(宿泊税月計表!CJ52=0,\"\",宿泊税月計表!CJ52)","v":""},null,null,null,null,null,null,"泊",null,"  200円",null,null,null,null,null,null,{"$f":"IF(AR29=\"\",\"\",AR29*200)","v":""},null,null,null,null,null,null,null,null,"円"]
[null,null,null,null,null,null,null,null,null,null,null,null,null,null,null,null,null,null,null,null,"１人１泊５万円以上",null,null,null,null,null,null,null,null,null,null,null,null,null,null,null,null,null,null,null,null,null,null,{"$f":"+IF(宿泊税月計表!CO52=0,\"\",宿泊税月計表!CO52)","v":""},null,null,null,null,null,null,"泊",null,"　500円",null,null,null,null,null,null,{"$f":"IF(AR30=\"\",\"\",AR30*500)","v":""},null,null,null,null,null,null,null,null,"円"]
[null,null,null,null,null,null,null,null,null,null,null,null,null,null,null,"課　税　対　象　外",null,null,null,null,null,null,null,null,null,null,null,null,null,null,null,null,null,null,null,null,null,null,null,null,null,null,null,{"$f":"+IF(宿泊税月計表!CT53=0,\"\",宿泊税月計表!CT53)","v":""},null,null,null,null,null,null,"泊"]
[null,null,null,null,null,null,null,null,null,null,null,null,null,null,null,"小　　　　　　　計",null,null,null,null,null,null,null,null,null,null,null,null,null,null,null,null,null,null,null,null,null,null,null,null,null,null,null,{"$f":"IF(SUM(AR24:AX31)=0,\"\",SUM(AR24:AX31))","v":""},null,null,null,null,null,null,"泊",null,null,null,null,null,null,null,null,{"$f":"IF(SUM(BH24:BP30)=0,\"\",SUM(BH24:BP30))","v":""},null,null,null,null,null,null,null,null,"円"]
[null,null,null,null,null,null,null,null,null,null,null,null,null,null,null,"課税対象",null,null,"一\n般\n客",null,"１人１泊２万円未満",null,null,null,null,null,null,null,null,null,null,null,null,null,null,null,null,null,null,null,null,null,null,{"$f":"+IF(宿泊税月計表!DO52=0,\"\",宿泊税月計表!DO52)","v":""},null,null,null,null,null,null,"泊",null,"  200円",null,null,null,null,null,null,{"$f":"IF(AR33=\"\",\"\",AR33*200)","v":""},null,null,null,null,null,null,null,null,"円"]
[null,null,null,null,null,null,null,null,null,{"$f":"+IF(宿泊税月計表!FA13=\"\",\"\",宿泊税月計表!FA13)","v":""},null,null,null,"年",null,null,null,null,null,null,"１人１泊２万円以上５万円未満",null,null,null,null,null,null,null,null,null,null,null,null,null,null,null,null,null,null,null,null,null,null,{"$f":"+IF(宿泊税月計表!DT52=0,\"\",宿泊税月計表!DT52)","v":""},null,null,null,null,null,null,"泊",null,"  400円",null,null,null,null,null,null,{"$f":"IF(AR34=\"\",\"\",AR34*400)","v":""},null,null,null,null,null,null,null,null,"円"]
[null,null,null,null,null,null,null,null,null,null,null,null,null,null,null,null,null,null,null,null,"１人１泊５万円以上10万円未満",null,null,null,null,null,null,null,null,null,null,null,null,null,null,null,null,null,null,null,null,null,null,{"$f":"+IF(宿泊税月計表!DY52=0,\"\",宿泊税月計表!DY52)","v":""},null,null,null,null,null,null,"泊",null,"1,000円",null,null,null,null,null,null,{"$f":"IF(AR35=\"\",\"\",AR35*1000)","v":""},null,null,null,null,null,null,null,null,"円"]
[null,null,null,null,null,null,null,null,null,null,null,null,null,null,null,null,null,null,null,null,"１人１泊10万円以上",null,null,null,null,null,null,null,null,null,null,null,null,null,null,null,null,null,null,null,null,null,null,{"$f":"+IF(宿泊税月計表!ED52=0,\"\",宿泊税月計表!ED52)","v":""},null,null,null,null,null,null,"泊",null,"2,500円",null,null,null,null,null,null,{"$f":"IF(AR36=\"\",\"\",AR36*2500)","v":""},null,null,null,null,null,null,null,null,"円"]
[null,null,null,null,null,null,null,null,null,{"$f":"+IF(宿泊税月計表!FF13=\"\",\"\",宿泊税月計表!FF13)","v":""},null,null,null,"月",null,null,null,null,"各\n種\n大\n会",null,"１人１泊２万円未満",null,null,null,null,null,null,null,null,null,null,null,null,null,null,null,null,null,null,null,null,null,null,{"$f":"+IF(宿泊税月計表!EI52=0,\"\",宿泊税月計表!EI52)","v":""},null,null,null,null,null,null,"泊",null,"  100円",null,null,null,null,null,null,{"$f":"IF(AR37=\"\",\"\",AR37*100)","v":""},null,null,null,null,null,null,null,null,"円"]
[null,null,null,null,null,null,null,null,null,null,null,null,null,null,null,null,null,null,null,null,"１人１泊２万円以上５万円未満",null,null,null,null,null,null,null,null,null,null,null,null,null,null,null,null,null,null,null,null,null,null,{"$f":"+IF(宿泊税月計表!EN52=0,\"\",宿泊税月計表!EN52)","v":""},null,null,null,null,null,null,"泊",null,"  200円",null,null,null,null,null,null,{"$f":"IF(AR38=\"\",\"\",AR38*200)","v":""},null,null,null,null,null,null,null,null,"円"]
[null,null,null,null,null,null,null,null,null,null,null,null,null,null,null,null,null,null,null,null,"１人１泊５万円以上",null,null,null,null,null,null,null,null,null,null,null,null,null,null,null,null,null,null,null,null,null,null,{"$f":"+IF(宿泊税月計表!ES52=0,\"\",宿泊税月計表!ES52)","v":""},null,null,null,null,null,null,"泊",null,"　500円",null,null,null,null,null,null,{"$f":"IF(AR39=\"\",\"\",AR39*500)","v":""},null,null,null,null,null,null,null,null,"円"]
[null,null,null,null,null,null,null,null,null,null,null,null,null,null,null,"課　税　対　象　外",null,null,null,null,null,null,null,null,null,null,null,null,null,null,null,null,null,null,null,null,null,null,null,null,null,null,null,{"$f":"+IF(宿泊税月計表!EX53=0,\"\",宿泊税月計表!EX53)","v":""},null,null,null,null,null,null,"泊"]
[null,null,null,null,null,null,null,null,null,null,null,null,null,null,null,"小　　　　　　　計",null,null,null,null,null,null,null,null,null,null,null,null,null,null,null,null,null,null,null,null,null,null,null,null,null,null,null,{"$f":"IF(SUM(AR33:AX40)=0,\"\",SUM(AR33:AX40))","v":""},null,null,null,null,null,null,"泊",null,null,null,null,null,null,null,null,{"$f":"IF(SUM(BH33:BP39)=0,\"\",SUM(BH33:BP39))","v":""},null,null,null,null,null,null,null,null,"円",null,null,"百","十","億","千","百","十","万","千","百","十","円","百","十","億","千","百","十","万","千","百","十","円"]
[null,"宿　　泊　　税　　合　　計",null,null,null,null,null,null,null,null,null,null,null,null,null,null,null,null,null,null,null,null,null,null,null,null,null,null,null,null,null,null,null,null,null,null,null,null,null,null,null,null,null,{"$f":"+IF((宿泊税月計表!AZ52+宿泊税月計表!DD52+宿泊税月計表!FH52)=0,\"\",(宿泊税月計表!AZ52+宿泊税月計表!DD52+宿泊税月計表!FH52))","v":""},null,null,null,null,null,null,"泊",null,null,null,null,null,null,null,null,{"$f":"IF(SUM(BH15:BP21)+SUM(BH24:BP30)+SUM(BH33:BP39)=0,\"\",SUM(BH15:BP21)+SUM(BH24:BP30)+SUM(BH33:BP39))","v":""},null,null,null,null,null,null,null,null,"円",null,{"$f":"IF(BH42=\"\",0,BH42)","v":0},{"$f":"ROUNDDOWN(RIGHT($BS$42,11)/10000000000,0)","v":0},{"$f":"ROUNDDOWN(RIGHT($BS$42,10)/1000000000,0)","v":0},{"$f":"ROUNDDOWN(RIGHT($BS$42,9)/100000000,0)","v":0},{"$f":"ROUNDDOWN(RIGHT($BS$42,8)/10000000,0)","v":0},{"$f":"ROUNDDOWN(RIGHT($BS$42,7)/1000000,0)","v":0},{"$f":"ROUNDDOWN(RIGHT($BS$42,6)/100000,0)","v":0},{"$f":"ROUNDDOWN(RIGHT($BS$42,5)/10000,0)","v":0},{"$f":"ROUNDDOWN(RIGHT($BS$42,4)/1000,0)","v":0},{"$f":"ROUNDDOWN(RIGHT($BS$42,3)/100,0)","v":0},{"$f":"ROUNDDOWN(RIGHT($BS$42,2)/10,0)","v":0},{"$f":"ROUNDDOWN(RIGHT($BS$42,1)/1,0)","v":0},{"$f":"IF(AND($BS42>=1000000000,$BS42<10000000000),\"￥\",IF($BS42>=10000000000,BT42,\"\"))","v":""},{"$f":"IF(AND($BS42>=100000000,$BS42<1000000000),\"￥\",IF($BS42>=1000000000,BU42,\"\"))","v":""},{"$f":"IF(AND($BS42>=10000000,$BS42<100000000),\"￥\",IF($BS42>=100000000,BV42,\"\"))","v":""},{"$f":"IF(AND($BS42>=1000000,$BS42<10000000),\"￥\",IF($BS42>=10000000,BW42,\"\"))","v":""},{"$f":"IF(AND($BS42>=100000,$BS42<1000000),\"￥\",IF($BS42>=1000000,BX42,\"\"))","v":""},{"$f":"IF(AND($BS42>=10000,$BS42<100000),\"￥\",IF($BS42>=100000,BY42,\"\"))","v":""},{"$f":"IF(AND($BS42>=1000,$BS42<10000),\"￥\",IF($BS42>=10000,BZ42,\"\"))","v":""},{"$f":"IF(AND($BS42>=100,$BS42<1000),\"￥\",IF($BS42>=1000,CA42,\"\"))","v":""},{"$f":"IF(AND($BS42>=10,$BS42<100),\"￥\",IF($BS42>=100,CB42,\"\"))","v":""},{"$f":"IF(AND($BS42>=1,$BS42<10),\"￥\",IF($BS42>=10,CC42,\"\"))","v":""},{"$f":"IF($BS42>=1,CD42,\"\")","v":""}]

{"sheet":"宿泊税月計表","index":1,"n_rows":76,"n_cols":207,"rows_kept":76,"cut":false,"hidden":false,"merged":[[6,30,6,32],[4,74,4,76],[4,77,4,79],[4,80,4,82],[4,83,4,85],[4,86,4,88],[4,89,4,91],[4,92,4,94],[4,57,4,73],[2,113,2,115],[1,83,1,85],[1,86,1,88],[1,89,1,91],[1,92,1,94],[1,57,1,73],[1,74,1,76],[1,77,1,79],[1,80,1,82],[9,51,9,53],[4,18,4,56],[11,57,11,112],[12,94,12,95],[12,96,12,99],[12,100,12,102],[12,103,12,104],[12,105,12,107],[9,37,9,40],[9,41,9,43],[9,44,9,45],[9,46,9,48],[9,49,9,50],[3,74,3,94],[2,57,2,73],[2,80,2,82],[2,83,2,85],[2,86,2,88],[2,89,2,91],[2,92,2,94],[2,95,2,97],[2,98,2,100],[2,101,2,103],[2,104,2,106],[2,107,2,109],[2,110,2,112],[3,57,3,73],[2,74,2,79],[6,18,6,20],[6,21,6,23],[6,24,6,26],[6,27,6,29],[5,6,5,17],[5,18,5,56],[6,6,6,17],[1,1,3,5],[4,1,6,5],[51,158,51,162],[51,163,52,168],[52,153,52,162],[1,6,1,17],[1,18,1,56],[2,6,2,17],[2,18,2,56],[3,6,3,17],[3,18,3,20],[3,21,3,23],[3,24,3,26],[3,27,3,29],[3,30,3,32],[3,33,3,35],[3,36,3,38],[3,39,3,41],[3,42,3,44],[3,45,3,47],[3,48,3,50],[3,51,3,53],[3,54,3,56],[4,6,4,17],[51,113,52,117],[51,118,52,122],[51,123,52,127],[51,128,52,132],[51,133,52,137],[51,138,52,142],[51,143,52,147],[51,148,52,152],[51,153,51,157],[49,158,49,162],[49,163,49,168],[50,113,50,117],[50,118,50,122],[50,123,50,127],[50,128,50,132],[50,133,50,137],[50,138,50,142],[50,143,50,147],[50,148,50,152],[50,153,50,157],[50,158,50,162],[50,163,50,168],[49,113,49,117],[49,118,49,122],[49,123,49,127],[49,128,49,132],[49,133,49,137],[49,138,49,142],[49,143,49,147],[49,148,49,152],[49,153,49,157],[47,158,47,162],[47,163,47,168],[48,113,48,117],[48,118,48,122],[48,123,48,127],[48,128,48,132],[48,133,48,137],[48,138,48,142],[48,143,48,147],[48,148,48,152],[48,153,48,157],[48,158,48,162],[48,163,48,168],[47,113,47,117],[47,118,47,122],[47,123,47,127],[47,128,47,132],[47,133,47,137],[47,138,47,142],[47,143,47,147],[47,148,47,152],[47,153,47,157],[45,158,45,162],[45,163,45,168],[46,113,46,117],[46,118,46,122],[46,123,46,127],[46,128,46,132],[46,133,46,137],[46,138,46,142],[46,143,46,147],[46,148,46,152],[46,153,46,157],[46,158,46,162],[46,163,46,168],[45,113,45,117],[45,118,45,122],[45,123,45,127],[45,128,45,132],[45,133,45,137],[45,138,45,142],[45,143,45,147],[45,148,45,152],[45,153,45,157],[43,158,43,162],[43,163,43,168],[44,113,44,117],[44,118,44,122],[44,123,44,127],[44,128,44,132],[44,133,44,137],[44,138,44,142],[44,143,44,147],[44,148,44,152],[44,153,44,157],[44,158,44,162],[44,163,44,168],[43,113,43,117],[43,118,43,122],[43,123,43,127],[43,128,43,132],[43,133,43,137],[43,138,43,142],[43,143,43,147],[43,148,43,152],[43,153,43,157],[41,158,41,162],[41,163,41,168],[42,113,42,117],[42,118,42,122],[42,123,42,127],[42,128,42,132],[42,133,42,137],[42,138,42,142],[42,143,42,147],[42,148,42,152],[42,153,42,157],[42,158,42,162],[42,163,42,168],[41,113,41,117],[41,118,41,122],[41,123,41,127],[41,128,41,132],[41,133,41,137],[41,138,41,142],[41,143,41,147],[41,148,41,152],[41,153,41,157],[39,158,39,162],[39,163,39,168],[40,113,40,117],[40,118,40,122],[40,123,40,127],[40,128,40,132],[40,133,40,137],[40,138,40,142],[40,143,40,147],[40,148,40,152],[40,153,40,157],[40,158,40,162],[40,163,40,168],[39,113,39,117],[39,118,39,122],[39,123,39,127],[39,128,39,132],[39,133,39,137],[39,138,39,142],[39,143,39,147],[39,148,39,152],[39,153,39,157],[37,158,37,162],[37,163,37,168],[38,113,38,117],[38,118,38,122],[38,123,38,127],[38,128,38,132],[38,133,38,137],[38,138,38,142],[38,143,38,147],[38,148,38,152],[38,153,38,157],[38,158,38,162],[38,163,38,168],[37,113,37,117],[37,118,37,122],[37,123,37,127],[37,128,37,132],[37,133,37,137],[37,138,37,142],[37,143,37,147],[37,148,37,152],[37,153,37,157],[35,158,35,162],[35,163,35,168],[36,113,36,117],[36,118,36,122],[36,123,36,127],[36,128,36,132],[36,133,36,137],[36,138,36,142],[36,143,36,147],[36,148,36,152],[36,153,36,157],[36,158,36,162],[36,163,36,168],[35,113,35,117],[35,118,35,122],[35,123,35,127],[35,128,35,132],[35,133,35,137],[35,138,35,142],[35,143,35,147],[35,148,35,152],[35,153,35,157],[33,158,33,162],[33,163,33,168],[34,113,34,117],[34,118,34,122],[34,123,34,127],[34,128,34,132],[34,133,34,137],[34,138,34,142],[34,143,34,147],[34,148,34,152],[34,153,34,157],[34,158,34,162],[34,163,34,168],[33,113,33,117],[33,118,33,122],[33,123,33,127],[33,128,33,132],[33,133,33,137],[33,138,33,142],[33,143,33,147],[33,148,33,152],[33,153,33,157],[31,158,31,162],[31,163,31,168],[32,113,32,117],[32,118,32,122],[32,123,32,127],[32,128,32,132],[32,133,32,137],[32,138,32,142],[32,143,32,147],[32,148,32,152],[32,153,32,157],[32,158,32,162],[32,163,32,168],[31,113,31,117],[31,118,31,122],[31,123,31,127],[31,128,31,132],[31,133,31,137],[31,138,31,142],[31,143,31,147],[31,148,31,152],[31,153,31,157],[29,158,29,162],[29,163,29,168],[30,113,30,117],[30,118,30,122],[30,123,30,127],[30,128,30,132],[30,133,30,137],[30,138,30,142],[30,143,30,147],[30,148,30,152],[30,153,30,157],[30,158,30,162],[30,163,30,168],[29,113,29,117],[29,118,29,122],[29,123,29,127],[29,128,29,132],[29,133,29,137],[29,138,29,142],[29,143,29,147],[29,148,29,152],[29,153,29,157],[27,158,27,162],[27,163,27,168],[28,113,28,117],[28,118,28,122],[28,123,28,127],[28,128,28,132],[28,133,28,137],[28,138,28,142],[28,143,28,147],[28,148,28,152],[28,153,28,157],[28,158,28,162],[28,163,28,168],[27,113,27,117],[27,118,27,122],[27,123,27,127],[27,128,27,132],[27,133,27,137],[27,138,27,142],[27,143,27,147],[27,148,27,152],[27,153,27,157],[25,158,25,162],[25,163,25,168],[26,113,26,117],[26,118,26,122],[26,123,26,127],[26,128,26,132],[26,133,26,137],[26,138,26,142],[26,143,26,147],[26,148,26,152],[26,153,26,157],[26,158,26,162],[26,163,26,168],[25,113,25,117],[25,118,25,122],[25,123,25,127],[25,128,25,132],[25,133,25,137],[25,138,25,142],[25,143,25,147],[25,148,25,152],[25,153,25,157],[23,158,23,162],[23,163,23,168],[24,113,24,117],[24,118,24,122],[24,123,24,127],[24,128,24,132],[24,133,24,137],[24,138,24,142],[24,143,24,147],[24,148,24,152],[24,153,24,157],[24,158,24,162],[24,163,24,168],[23,113,23,117],[23,118,23,122],[23,123,23,127],[23,128,23,132],[23,133,23,137],[23,138,23,142],[23,143,23,147],[23,148,23,152],[23,153,23,157],[21,158,21,162],[21,163,21,168],[22,113,22,117],[22,118,22,122],[22,123,22,127],[22,128,22,132],[22,133,22,137],[22,138,22,142],[22,143,22,147],[22,148,22,152],[22,153,22,157],[22,158,22,162],[22,163,22,168],[21,113,21,117],[21,118,21,122],[21,123,21,127],[21,128,21,132],[21,133,21,137],[21,138,21,142],[21,143,21,147],[21,148,21,152],[21,153,21,157],[19,163,19,168],[20,113,20,117],[20,118,20,122],[20,123,20,127],[20,128,20,132],[20,133,20,137],[20,138,20,142],[20,143,20,147],[20,148,20,152],[20,153,20,157],[20,158,20,162],[20,163,20,168],[18,153,18,157],[18,158,18,162],[19,113,19,117],[19,118,19,122],[19,123,19,127],[19,128,19,132],[19,133,19,137],[19,138,19,142],[19,143,19,147],[19,148,19,152],[19,153,19,157],[19,158,19,162],[17,128,17,132],[17,133,17,137],[17,138,17,142],[17,143,17,147],[17,148,17,152],[18,113,18,117],[18,118,18,122],[18,123,18,127],[18,128,18,132],[18,133,18,137],[18,138,18,142],[18,143,18,147],[18,148,18,152],[9,161,9,162],[9,163,9,165],[9,166,9,167],[11,113,11,168],[12,150,12,151],[12,152,12,155],[12,156,12,158],[12,159,12,160],[12,161,12,163],[12,164,12,168],[13,165,13,166],[13,167,13,168],[13,159,13,160],[13,161,13,162],[13,163,13,164],[51,107,52,112],[52,97,52,106],[8,113,8,125],[8,129,8,137],[9,149,9,152],[9,153,9,155],[9,156,9,157],[9,158,9,160],[13,113,13,122],[13,123,13,151],[13,152,13,158],[14,113,14,122],[14,123,14,168],[15,113,17,117],[15,118,15,152],[15,153,15,162],[15,163,18,168],[16,118,16,137],[16,138,16,152],[16,153,17,157],[16,158,17,162],[17,118,17,122],[47,102,47,106],[47,107,47,112],[45,102,45,106],[45,107,45,112],[43,102,43,106],[43,107,43,112],[41,102,41,106],[41,107,41,112],[39,102,39,106],[17,123,17,127],[51,57,52,61],[51,62,52,66],[51,67,52,71],[51,72,52,76],[51,77,52,81],[51,82,52,86],[51,87,52,91],[51,92,52,96],[51,97,51,101],[49,102,49,106],[49,107,49,112],[50,57,50,61],[50,62,50,66],[50,67,50,71],[50,72,50,76],[50,77,50,81],[50,82,50,86],[50,87,50,91],[50,92,50,96],[50,97,50,101],[50,102,50,106],[50,107,50,112],[49,57,49,61],[49,62,49,66],[49,67,49,71],[49,72,49,76],[49,77,49,81],[49,82,49,86],[49,87,49,91],[49,92,49,96],[49,97,49,101],[51,102,51,106],[48,57,48,61],[48,62,48,66],[48,67,48,71],[48,72,48,76],[48,77,48,81],[48,82,48,86],[48,87,48,91],[48,92,48,96],[48,97,48,101],[48,102,48,106],[48,107,48,112],[47,57,47,61],[47,62,47,66],[47,67,47,71],[47,72,47,76],[47,77,47,81],[47,82,47,86],[47,87,47,91],[47,92,47,96],[47,97,47,101],[46,57,46,61],[46,62,46,66],[46,67,46,71],[46,72,46,76],[46,77,46,81],[46,82,46,86],[46,87,46,91],[46,92,46,96],[46,97,46,101],[46,102,46,106],[46,107,46,112],[45,57,45,61],[45,62,45,66],[45,67,45,71],[45,72,45,76],[45,77,45,81],[45,82,45,86],[45,87,45,91],[45,92,45,96],[45,97,45,101],[44,57,44,61],[44,62,44,66],[44,67,44,71],[44,72,44,76],[44,77,44,81],[44,82,44,86],[44,87,44,91],[44,92,44,96],[44,97,44,101],[44,102,44,106],[44,107,44,112],[43,57,43,61],[43,62,43,66],[43,67,43,71],[43,72,43,76],[43,77,43,81],[43,82,43,86],[43,87,43,91],[43,92,43,96],[43,97,43,101],[42,57,42,61],[42,62,42,66],[42,67,42,71],[42,72,42,76],[42,77,42,81],[42,82,42,86],[42,87,42,91],[42,92,42,96],[42,97,42,101],[42,102,42,106],[42,107,42,112],[41,57,41,61],[41,62,41,66],[41,67,41,71],[41,72,41,76],[41,77,41,81],[41,82,41,86],[41,87,41,91],[41,92,41,96],[41,97,41,101],[39,107,39,112],[40,57,40,61],[40,62,40,66],[40,67,40,71],[40,72,40,76],[40,77,40,81],[40,82,40,86],[40,87,40,91],[40,92,40,96],[40,97,40,101],[40,102,40,106],[40,107,40,112],[39,57,39,61],[39,62,39,66],[39,67,39,71],[39,72,39,76],[39,77,39,81],[39,82,39,86],[39,87,39,91],[39,92,39,96],[39,97,39,101],[37,102,37,106],[37,107,37,112],[38,57,38,61],[38,62,38,66],[38,67,38,71],[38,72,38,76],[38,77,38,81],[38,82,38,86],[38,87,38,91],[38,92,38,96],[38,97,38,101],[38,102,38,106],[38,107,38,112],[37,57,37,61],[37,62,37,66],[37,67,37,71],[37,72,37,76],[37,77,37,81],[37,82,37,86],[37,87,37,91],[37,92,37,96],[37,97,37,101],[35,102,35,106],[35,107,35,112],[36,57,36,61],[36,62,36,66],[36,67,36,71],[36,72,36,76],[36,77,36,81],[36,82,36,86],[36,87,36,91],[36,92,36,96],[36,97,36,101],[36,102,36,106],[36,107,36,112],[35,57,35,61],[35,62,35,66],[35,67,35,71],[35,72,35,76],[35,77,35,81],[35,82,35,86],[35,87,35,91],[35,92,35,96],[35,97,35,101],[33,102,33,106],[33,107,33,112],[34,57,34,61],[34,62,34,66],[34,67,34,71],[34,72,34,76],[34,77,34,81],[34,82,34,86],[34,87,34,91],[34,92,34,96],[34,97,34,101],[34,102,34,106],[34,107,34,112],[33,57,33,61],[33,62,33,66],[33,67,33,71],[33,72,33,76],[33,77,33,81],[33,82,33,86],[33,87,33,91],[33,92,33,96],[33,97,33,101],[31,102,31,106],[31,107,31,112],[32,57,32,61],[32,62,32,66],[32,67,32,71],[32,72,32,76],[32,77,32,81],[32,82,32,86],[32,87,32,91],[32,92,32,96],[32,97,32,101],[32,102,32,106],[32,107,32,112],[31,57,31,61],[31,62,31,66],[31,67,31,71],[31,72,31,76],[31,77,31,81],[31,82,31,86],[31,87,31,91],[31,92,31,96],[31,97,31,101],[29,102,29,106],[29,107,29,112],[30,57,30,61],[30,62,30,66],[30,67,30,71],[30,72,30,76],[30,77,30,81],[30,82,30,86],[30,87,30,91],[30,92,30,96],[30,97,30,101],[30,102,30,106],[30,107,30,112],[29,57,29,61],[29,62,29,66],[29,67,29,71],[29,72,29,76],[29,77,29,81],[29,82,29,86],[29,87,29,91],[29,92,29,96],[29,97,29,101],[27,102,27,106],[27,107,27,112],[28,57,28,61],[28,62,28,66],[28,67,28,71],[28,72,28,76],[28,77,28,81],[28,82,28,86],[28,87,28,91],[28,92,28,96],[28,97,28,101],[28,102,28,106],[28,107,28,112],[27,57,27,61],[27,62,27,66],[27,67,27,71],[27,72,27,76],[27,77,27,81],[27,82,27,86],[27,87,27,91],[27,92,27,96],[27,97,27,101],[25,102,25,106],[25,107,25,112],[26,57,26,61],[26,62,26,66],[26,67,26,71],[26,72,26,76],[26,77,26,81],[26,82,26,86],[26,87,26,91],[26,92,26,96],[26,97,26,101],[26,102,26,106],[26,107,26,112],[25,57,25,61],[25,62,25,66],[25,67,25,71],[25,72,25,76],[25,77,25,81],[25,82,25,86],[25,87,25,91],[25,92,25,96],[25,97,25,101],[23,102,23,106],[23,107,23,112],[24,57,24,61],[24,62,24,66],[24,67,24,71],[24,72,24,76],[24,77,24,81],[24,82,24,86],[24,87,24,91],[24,92,24,96],[24,97,24,101],[24,102,24,106],[24,107,24,112],[23,57,23,61],[23,62,23,66],[23,67,23,71],[23,72,23,76],[23,77,23,81],[23,82,23,86],[23,87,23,91],[23,92,23,96],[23,97,23,101],[21,102,21,106],[21,107,21,112],[22,57,22,61],[22,62,22,66],[22,67,22,71],[22,72,22,76],[22,77,22,81],[22,82,22,86],[22,87,22,91],[22,92,22,96],[22,97,22,101],[22,102,22,106],[22,107,22,112],[21,57,21,61],[21,62,21,66],[21,67,21,71],[21,72,21,76],[21,77,21,81],[21,82,21,86],[21,87,21,91],[21,92,21,96],[21,97,21,101],[20,72,20,76],[20,77,20,81],[20,82,20,86],[20,87,20,91],[20,92,20,96],[20,97,20,101],[20,102,20,106],[20,107,20,112],[18,92,18,96],[18,97,18,101],[18,102,18,106],[19,57,19,61],[19,62,19,66],[19,67,19,71],[19,72,19,76],[19,77,19,81],[19,82,19,86],[19,87,19,91],[19,92,19,96],[19,97,19,101],[19,102,19,106],[20,51,20,56],[19,1,19,5],[19,6,19,10],[19,11,19,15],[19,16,19,20],[19,21,19,25],[19,26,19,30],[19,31,19,35],[14,57,14,66],[14,67,14,112],[15,57,17,61],[15,62,15,96],[15,97,15,106],[15,107,18,112],[16,62,16,81],[16,82,16,96],[16,97,17,101],[16,102,17,106],[17,62,17,66],[17,67,17,71],[17,72,17,76],[17,77,17,81],[17,82,17,86],[17,87,17,91],[17,92,17,96],[18,57,18,61],[18,62,18,66],[18,67,18,71],[19,107,19,112],[20,57,20,61],[20,62,20,66],[20,67,20,71],[14,1,14,10],[14,11,14,56],[17,16,17,20],[17,21,17,25],[17,26,17,30],[17,31,17,35],[18,1,18,5],[18,6,18,10],[12,108,12,112],[13,57,13,66],[13,67,13,95],[13,96,13,102],[8,57,8,69],[8,73,8,81],[9,93,9,96],[9,97,9,99],[9,100,9,101],[9,102,9,104],[9,105,9,106],[9,107,9,109],[9,110,9,111],[18,72,18,76],[18,77,18,81],[18,82,18,86],[18,87,18,91],[13,55,13,56],[13,103,13,104],[13,105,13,106],[13,107,13,108],[13,109,13,110],[13,111,13,112],[8,17,8,25],[13,40,13,46],[8,1,8,13],[12,38,12,39],[12,52,12,56],[13,1,13,10],[13,11,13,39],[11,1,11,56],[12,40,12,43],[12,44,12,46],[12,47,12,48],[12,49,12,51],[9,54,9,55],[13,47,13,48],[13,49,13,50],[13,51,13,52],[13,53,13,54],[18,11,18,15],[18,16,18,20],[18,21,18,25],[15,1,17,5],[15,6,15,40],[16,6,16,25],[16,26,16,40],[17,6,17,10],[17,11,17,15],[18,26,18,30],[18,31,18,35],[18,36,18,40],[18,41,18,45],[18,46,18,50],[15,51,18,56],[17,36,17,40],[15,41,15,50],[16,41,17,45],[16,46,17,50],[22,1,22,5],[22,6,22,10],[22,11,22,15],[22,16,22,20],[22,21,22,25],[21,1,21,5],[21,6,21,10],[21,11,21,15],[21,16,21,20],[21,21,21,25],[22,26,22,30],[22,31,22,35],[22,36,22,40],[22,41,22,45],[22,46,22,50],[19,46,19,50],[20,31,20,35],[20,36,20,40],[20,41,20,45],[20,46,20,50],[22,51,22,56],[21,31,21,35],[21,36,21,40],[21,41,21,45],[21,46,21,50],[21,51,21,56],[21,26,21,30],[19,36,19,40],[19,41,19,45],[19,51,19,56],[20,1,20,5],[20,6,20,10],[20,11,20,15],[20,16,20,20],[20,21,20,25],[20,26,20,30],[24,1,24,5],[24,6,24,10],[24,11,24,15],[24,16,24,20],[24,21,24,25],[23,1,23,5],[23,6,23,10],[23,11,23,15],[23,16,23,20],[23,21,23,25],[24,26,24,30],[24,31,24,35],[24,36,24,40]],"merged_total":1307,"flags":["merged_cut"]}
[]
[null,"特別徴収\n義 務 者",null,null,null,null,"住 所 （ 所 在 地 ）",null,null,null,null,null,null,null,null,null,null,null,null,null,null,null,null,null,null,null,null,null,null,null,null,null,null,null,null,null,null,null,null,null,null,null,null,null,null,null,null,null,null,null,null,null,null,null,null,null,null,"提出年月日",null,null,null,null,null,null,null,null,null,null,null,null,null,null,null,null,"令和",null,null,null,null,null,"年",null,null,null,null,null,"月",null,null,null,null,null,"日",null,null,null,null,null,null,null,null,null,null,null,null,null,null,null,null,null,null,null,null,null,null,null,null,null,null,null,null,null,null,null,null,null,null,null,null,null,null,null,null,null,null,null,null,null,null,null,null,null,null,null,null,null,null,null,null,null,null,null,null,null,null,null,null,null,null,null,null,null,null,null,null,null,null,null,null,null,null,null,null,null,null,null,null,null,null,null,null,null,null,null,null,null,null,null,null,null,null,null,null,null,null,null,"一か月分","二か月分","三か月分"]
[null,null,null,null,null,null,"氏名(名称)･代表者の氏名",null,null,null,null,null,null,null,null,null,null,null,null,null,null,null,null,null,null,null,null,null,null,null,null,null,null,null,null,null,null,null,null,null,null,null,null,null,null,null,null,null,null,null,null,null,null,null,null,null,null,"徴収期間",null,null,null,null,null,null,null,null,null,null,null,null,null,null,null,null,"三か月分",null,null,null,null,null,"令和",null,null,null,null,null,"年",null,null,null,null,null,"月",null,null,"から",null,null,"令和",null,null,{"$f":"IF($BW3=\"一か月分\",GI3,IF($BW3=\"二か月分\",GK3,IF($BW3=\"三か月分\",GM3,\"\")))","v":""},null,null,"年",null,null,{"$f":"IF($BW3=\"一か月分\",GJ3,IF($BW3=\"二か月分\",GL3,IF($BW3=\"三か月分\",GN3,\"\")))","v":""},null,null,"月",null,null,"まで",null,null,null,null,null,null,null,null,null,null,null,null,null,null,null,null,null,null,null,null,null,null,null,null,null,null,null,null,null,null,null,null,null,null,null,null,null,null,null,null,null,null,null,null,null,null,null,null,null,null,null,null,null,null,null,null,null,null,null,null,null,null,null,null,null,null,null,null,null,null,null,null,null,null,null,null,{"$f":"+CF3","v":0},{"$f":"+CL3","v":0},{"$f":"IF(CF3=\"\",\"\",IF(GL3=1,GI3+1,GI3))","v":""},{"$f":"IF(CL3=\"\",\"\",IF((GJ3+1)=13,1,GJ3+1))","v":""},{"$f":"IF(CF3=\"\",\"\",IF(GN3=1,GK3+1,GK3))","v":""},{"$f":"IF(CL3=\"\",\"\",IF((GL3+1)=13,1,GL3+1))","v":""},1,3,3]
[null,null,null,null,null,null,"個人番号または法人番号\n（右詰で記載）",null,null,null,null,null,null,null,null,null,null,null,null,null,null,null,null,null,null,null,null,null,null,null,null,null,null,null,null,null,null,null,null,null,null,null,null,null,null,null,null,null,null,null,null,null,null,null,null,null,null,"区分",null,null,null,null,null,null,null,null,null,null,null,null,null,null,null,null,"01 申告",null,null,null,null,null,null,null,null,null,null,null,null,null,null,null,null,null,null,null,null,null,null,null,null,null,null,null,null,null,null,null,null,null,null,null,null,null,null,null,null,null,null,null,null,null,null,null,null,null,null,null,null,null,null,null,null,null,null,null,null,null,null,null,null,null,null,null,null,null,null,null,null,null,null,null,null,null,null,null,null,null,null,null,null,null,null,null,null,null,null,null,null,null,null,null,null,null,null,null,null,null,null,null,null,null,null,null,null,null,null,null,null,null,null,null,"01 申告",null,null,null,null,null,2,4,6]
[null,"宿泊施設",null,null,null,null,"所在地",null,null,null,null,null,null,null,null,null,null,null,null,null,null,null,null,null,null,null,null,null,null,null,null,null,null,null,null,null,null,null,null,null,null,null,null,null,null,null,null,null,null,null,null,null,null,null,null,null,null,"納期限",null,null,null,null,null,null,null,null,null,null,null,null,null,null,null,null,"令和",null,null,null,null,null,"年",null,null,null,null,null,"月",null,null,null,null,null,"日",null,null,"　納期限は，宿泊施設の経営を休止または",null,null,null,null,null,null,null,null,null,null,null,null,null,null,null,null,null,null,null,null,null,null,null,null,null,null,null,null,null,null,null,null,null,null,null,null,null,null,null,null,null,null,null,null,null,null,null,null,null,null,null,null,null,null,null,null,null,null,null,null,null,null,null,null,null,null,null,null,null,null,null,null,null,null,null,null,null,null,null,null,null,null,null,null,null,null,null,null,null,null,null,null,null,null,"02 更正",null,null,null,null,null,3,6,9]
[null,null,null,null,null,null,"名称",null,null,null,null,null,null,null,null,null,null,null,null,null,null,null,null,null,null,null,null,null,null,null,null,null,null,null,null,null,null,null,null,null,null,null,null,null,null,null,null,null,null,null,null,null,null,null,null,null,null,null,null,null,null,null,null,null,null,null,null,null,null,null,null,null,null,null,null,null,null,null,null,null,null,null,null,null,null,null,null,null,null,null,null,null,null,null,null,"　廃止しない場合は，記入不要です。",null,null,null,null,null,null,null,null,null,null,null,null,null,null,null,null,null,null,null,null,null,null,null,null,null,null,null,null,null,null,null,null,null,null,null,null,null,null,null,null,null,null,null,null,null,null,null,null,null,null,null,null,null,null,null,null,null,null,null,null,null,null,null,null,null,null,null,null,null,null,null,null,null,null,null,null,null,null,null,null,null,null,null,null,null,null,null,null,null,null,null,null,null,null,"03 決定",null,null,null,null,null,4,7,12]
[null,null,null,null,null,null,"指定番号",null,null,null,null,null,null,null,null,null,null,null,null,null,null,null,null,null,null,null,null,null,null,null,null,null,null,null,null,null,null,null,null,null,null,null,null,null,null,null,null,null,null,null,null,null,null,null,null,null,null,null,null,null,null,null,null,null,null,null,null,null,null,null,null,null,null,null,null,null,null,null,null,null,null,null,null,null,null,null,null,null,null,null,null,null,null,null,null,null,null,null,null,null,null,null,null,null,null,null,null,null,null,null,null,null,null,null,null,null,null,null,null,null,null,null,null,null,null,null,null,null,null,null,null,null,null,null,null,null,null,null,null,null,null,null,null,null,null,null,null,null,null,null,null,null,null,null,null,null,null,null,null,null,null,null,null,null,null,null,null,null,null,null,null,null,null,null,null,null,null,null,null,null,null,null,null,null,null,null,null,null,null,null,null,null,null,null,null,null,5,9]
[null,null,null,null,null,null,null,null,null,null,null,null,null,null,null,null,null,null,null,null,null,null,null,null,null,null,null,null,null,null,null,null,null,null,null,null,null,null,null,null,null,null,null,null,null,null,null,null,null,null,null,null,null,null,null,null,null,null,null,null,null,null,null,null,null,null,null,null,null,null,null,null,null,null,null,null,null,null,null,null,null,null,null,null,null,null,null,null,null,null,null,null,null,null,null,null,null,null,null,null,null,null,null,null,null,null,null,null,null,null,null,null,null,null,null,null,null,null,null,null,null,null,null,null,null,null,null,null,null,null,null,null,null,null,null,null,null,null,null,null,null,null,null,null,null,null,null,null,null,null,null,null,null,null,null,null,null,null,null,null,null,null,null,null,null,null,null,null,null,null,null,null,null,null,null,null,null,null,null,null,null,null,null,null,null,null,null,null,null,null,null,null,null,null,null,null,6,10]
[null,"第３号様式",null,null,null,null,null,null,null,null,null,null,null,null,null,null,null,null,null,null,null,null,null,null,null,null,null,null,null,null,null,null,null,null,null,null,null,null,null,null,null,null,null,null,null,null,null,null,null,null,null,null,null,null,null,null,null,"第３号様式",null,null,null,null,null,null,null,null,null,null,null,null,null,null,null,null,null,null,null,null,null,null,null,null,null,null,null,null,null,null,null,null,null,null,null,null,null,null,null,null,null,null,null,null,null,null,null,null,null,null,null,null,null,null,null,"第３号様式",null,null,null,null,null,null,null,null,null,null,null,null,null,null,null,null,null,null,null,null,null,null,null,null,null,null,null,null,null,null,null,null,null,null,null,null,null,null,null,null,null,null,null,null,null,null,null,null,null,null,null,null,null,null,null,null,null,null,null,null,null,null,null,null,null,null,null,null,null,null,null,null,null,null,null,null,null,null,null,null,null,null,7,12]
[null,null,null,null,null,null,null,null,null,null,null,null,null,null,null,null,null,null,null,null,null,null,null,null,null,null,null,null,null,null,null,null,null,null,null,null,null,"令和",null,null,null,{"$f":"IF($BZ2=\"\",\"\",$BZ2)","v":""},null,null,"年",null,{"$f":"IF($CF2=\"\",\"\",$CF2)","v":""},null,null,"月",null,{"$f":"IF($CL2=\"\",\"\",$CL2)","v":""},null,null,"日",null,null,null,null,null,null,null,null,null,null,null,null,null,null,null,null,null,null,null,null,null,null,null,null,null,null,null,null,null,null,null,null,null,null,null,null,null,null,"令和",null,null,null,{"$f":"IF($BZ2=\"\",\"\",$BZ2)","v":""},null,null,"年",null,{"$f":"IF($CF2=\"\",\"\",$CF2)","v":""},null,null,"月",null,{"$f":"IF($CL2=\"\",\"\",$CL2)","v":""},null,null,"日",null,null,null,null,null,null,null,null,null,null,null,null,null,null,null,null,null,null,null,null,null,null,null,null,null,null,null,null,null,null,null,null,null,null,null,null,null,null,"令和",null,null,null,{"$f":"IF($BZ2=\"\",\"\",$BZ2)","v":""},null,null,"年",null,{"$f":"IF($CF2=\"\",\"\",$CF2)","v":""},null,null,"月",null,{"$f":"IF($CL2=\"\",\"\",$CL2)","v":""},null,null,"日",null,null,null,null,null,null,null,null,null,null,null,null,null,null,null,null,null,null,null,null,null,null,null,null,null,null,null,null,null,8,1]
[null,null,null,null,null,null,null,null,null,null,null,null,null,null,null,null,null,null,null,null,null,null,null,null,null,null,null,null,null,null,null,null,null,null,null,null,null,null,null,null,null,null,null,null,null,null,null,null,null,null,null,null,null,null,null,null,null,null,null,null,null,null,null,null,null,null,null,null,null,null,null,null,null,null,null,null,null,null,null,null,null,null,null,null,null,null,null,null,null,null,null,null,null,null,null,null,null,null,null,null,null,null,null,null,null,null,null,null,null,null,null,null,null,null,null,null,null,null,null,null,null,null,null,null,null,null,null,null,null,null,null,null,null,null,null,null,null,null,null,null,null,null,null,null,null,null,null,null,null,null,null,null,null,null,null,null,null,null,null,null,null,null,null,null,null,null,null,null,null,null,null,null,null,null,null,null,null,null,null,null,null,null,null,null,null,null,null,null,null,null,null,null,null,null,null,null,9]
[null,"宿泊税月計表",null,null,null,null,null,null,null,null,null,null,null,null,null,null,null,null,null,null,null,null,null,null,null,null,null,null,null,null,null,null,null,null,null,null,null,null,null,null,null,null,null,null,null,null,null,null,null,null,null,null,null,null,null,null,null,"宿泊税月計表",null,null,null,null,null,null,null,null,null,null,null,null,null,null,null,null,null,null,null,null,null,null,null,null,null,null,null,null,null,null,null,null,null,null,null,null,null,null,null,null,null,null,null,null,null,null,null,null,null,null,null,null,null,null,null,"宿泊税月計表",null,null,null,null,null,null,null,null,null,null,null,null,null,null,null,null,null,null,null,null,null,null,null,null,null,null,null,null,null,null,null,null,null,null,null,null,null,null,null,null,null,null,null,null,null,null,null,null,null,null,null,null,null,null,null,null,null,null,null,null,null,null,null,null,null,null,null,null,null,null,null,null,null,null,null,null,null,null,null,null,null,null,10]
[null,null,null,null,null,null,null,null,null,null,null,null,null,null,null,null,null,null,null,null,null,null,null,null,null,null,null,null,null,null,null,null,null,null,null,null,null,null,"（",null,"令和",null,null,null,{"$f":"IF($CF3=\"\",\"\",CF3)","v":""},null,null,"年",null,{"$f":"IF($CL3=\"\",\"\",CL3)","v":""},null,null,"月分）",null,null,null,null,null,null,null,null,null,null,null,null,null,null,null,null,null,null,null,null,null,null,null,null,null,null,null,null,null,null,null,null,null,null,null,null,null,null,null,null,null,"（",null,"令和",null,null,null,{"$f":"IF(OR($BW3=\"二か月分\",$BW3=\"三か月分\"),GK3,\"\")","v":""},null,null,"年",null,{"$f":"IF(OR($BW3=\"二か月分\",$BW3=\"三か月分\"),GL3,\"\")","v":""},null,null,"月分）",null,null,null,null,null,null,null,null,null,null,null,null,null,null,null,null,null,null,null,null,null,null,null,null,null,null,null,null,null,null,null,null,null,null,null,null,null,null,null,null,null,"（",null,"令和",null,null,null,{"$f":"IF($BW3=\"三か月分\",GM3,\"\")","v":""},null,null,"年",null,{"$f":"IF($BW3=\"三か月分\",GN3,\"\")","v":""},null,null,"月分）",null,null,null,null,null,null,null,null,null,null,null,null,null,null,null,null,null,null,null,null,null,null,null,null,null,{"$f":"IF(FA13<>\"\",FA13,IF(CW13<>\"\",CW13,AS13))","v":""},{"$f":"IF(FF13<>\"\",FF13,IF(DB13<>\"\",DB13,AX13))","v":""},null,null,null,null,11]
[null,"特別徴収義務者",null,null,null,null,null,null,null,null,null,{"$f":"IF($S3=\"\",\"\",$S3)","v":""},null,null,null,null,null,null,null,null,null,null,null,null,null,null,null,null,null,null,null,null,null,null,null,null,null,null,null,null,"指定番号",null,null,null,null,null,null,{"$f":"IF($S7=\"\",\"\",$S7)","v":""},null,{"$f":"IF($V7=\"\",\"\",$V7)","v":""},null,{"$f":"IF($Y7=\"\",\"\",$Y7)","v":""},null,{"$f":"IF($AB7=\"\",\"\",$AB7)","v":""},null,{"$f":"IF($AE7=\"\",\"\",$AE7)","v":""},null,"特別徴収義務者",null,null,null,null,null,null,null,null,null,{"$f":"IF($S3=\"\",\"\",$S3)","v":""},null,null,null,null,null,null,null,null,null,null,null,null,null,null,null,null,null,null,null,null,null,null,null,null,null,null,null,null,"指定番号",null,null,null,null,null,null,{"$f":"IF($S7=\"\",\"\",$S7)","v":""},null,{"$f":"IF($V7=\"\",\"\",$V7)","v":""},null,{"$f":"IF($Y7=\"\",\"\",$Y7)","v":""},null,{"$f":"IF($AB7=\"\",\"\",$AB7)","v":""},null,{"$f":"IF($AE7=\"\",\"\",$AE7)","v":""},null,"特別徴収義務者",null,null,null,null,null,null,null,null,null,{"$f":"IF($S3=\"\",\"\",$S3)","v":""},null,null,null,null,null,null,null,null,null,null,null,null,null,null,null,null,null,null,null,null,null,null,null,null,null,null,null,null,"指定番号",null,null,null,null,null,null,{"$f":"IF($S7=\"\",\"\",$S7)","v":""},null,{"$f":"IF($V7=\"\",\"\",$V7)","v":""},null,{"$f":"IF($Y7=\"\",\"\",$Y7)","v":""},null,{"$f":"IF($AB7=\"\",\"\",$AB7)","v":""},null,{"$f":"IF($AE7=\"\",\"\",$AE7)","v":""},null,null,null,null,null,null,null,null,null,null,null,null,null,null,null,null,null,null,null,null,null,null,null,null,null,null,null,null,12]
[null,"宿泊施設名",null,null,null,null,null,null,null,null,null,{"$f":"IF($S6=\"\",\"\",$S6)","v":""},null,null,null,null,null,null,null,null,null,null,null,null,null,null,null,null,null,null,null,null,null,null,null,null,null,null,null,null,null,null,null,null,null,null,null,null,null,null,null,null,null,null,null,null,null,"宿泊施設名",null,null,null,null,null,null,null,null,null,{"$f":"IF($S6=\"\",\"\",$S6)","v":""},null,null,null,null,null,null,null,null,null,null,null,null,null,null,null,null,null,null,null,null,null,null,null,null,null,null,null,null,null,null,null,null,null,null,null,null,null,null,null,null,null,null,null,null,null,"宿泊施設名",null,null,null,null,null,null,null,null,null,{"$f":"IF($S6=\"\",\"\",$S6)","v":""}]
[null,"　　区分\n\n\n\n 日　　",null,null,null,null,"課税対象",null,null,null,null,null,null,null,null,null,null,null,null,null,null,null,null,null,null,null,null,null,null,null,null,null,null,null,null,null,null,null,null,null,null,"課税対象外",null,null,null,null,null,null,null,null,null,"合計",null,null,null,null,null,"　　区分\n\n\n\n 日　　",null,null,null,null,"課税対象",null,null,null,null,null,null,null,null,null,null,null,null,null,null,null,null,null,null,null,null,null,null,null,null,null,null,null,null,null,null,null,null,null,null,"課税対象外",null,null,null,null,null,null,null,null,null,"合計",null,null,null,null,null,"　　区分\n\n\n\n 日　　",null,null,null,null,"課税対象",null,null,null,null,null,null,null,null,null,null,null,null,null,null,null,null,null,null,null,null,null,null,null,null,null,null,null,null,null,null,null,null,null,null,"課税対象外",null,null,null,null,null,null,null,null,null,"合計"]
[null,null,null,null,null,null,"一般客",null,null,null,null,null,null,null,null,null,null,null,null,null,null,null,null,null,null,null,"各種大会",null,null,null,null,null,null,null,null,null,null,null,null,null,null,"修学旅行\nその他\n学校行事等",null,null,null,null,"その他",null,null,null,null,null,null,null,null,null,null,null,null,null,null,null,"一般客",null,null,null,null,null,null,null,null,null,null,null,null,null,null,null,null,null,null,null,"各種大会",null,null,null,null,null,null,null,null,null,null,null,null,null,null,"修学旅行\nその他\n学校行事等",null,null,null,null,"その他",null,null,null,null,null,null,null,null,null,null,null,null,null,null,null,"一般客",null,null,null,null,null,null,null,null,null,null,null,null,null,null,null,null,null,null,null,"各種大会",null,null,null,null,null,null,null,null,null,null,null,null,null,null,"修学旅行\nその他\n学校行事等",null,null,null,null,"その他"]
[null,null,null,null,null,null,"２万円未満",null,null,null,null,"２万円以上\n５万円未満",null,null,null,null,"５万円以上\n10万円未満",null,null,null,null,"10万円以上",null,null,null,null,"２万円未満",null,null,null,null,"２万円以上\n５万円未満",null,null,null,null,"５万円以上",null,null,null,null,null,null,null,null,null,null,null,null,null,null,null,null,null,null,null,null,null,null,null,null,null,"２万円未満",null,null,null,null,"２万円以上\n５万円未満",null,null,null,null,"５万円以上\n10万円未満",null,null,null,null,"10万円以上",null,null,null,null,"２万円未満",null,null,null,null,"２万円以上\n５万円未満",null,null,null,null,"５万円以上",null,null,null,null,null,null,null,null,null,null,null,null,null,null,null,null,null,null,null,null,null,null,null,null,null,"２万円未満",null,null,null,null,"２万円以上\n５万円未満",null,null,null,null,"５万円以上\n10万円未満",null,null,null,null,"10万円以上",null,null,null,null,"２万円未満",null,null,null,null,"２万円以上\n５万円未満",null,null,null,null,"５万円以上"]
[null,"（税率）",null,null,null,null,200,null,null,null,null,400,null,null,null,null,1000,null,null,null,null,2500,null,null,null,null,100,null,null,null,null,200,null,null,null,null,500,null,null,null,null,null,null,null,null,null,null,null,null,null,null,null,null,null,null,null,null,"（税率）",null,null,null,null,200,null,null,null,null,400,null,null,null,null,1000,null,null,null,null,2500,null,null,null,null,100,null,null,null,null,200,null,null,null,null,500,null,null,null,null,null,null,null,null,null,null,null,null,null,null,null,null,null,null,null,null,"（税率）",null,null,null,null,200,null,null,null,null,400,null,null,null,null,1000,null,null,null,null,2500,null,null,null,null,100,null,null,null,null,200,null,null,null,null,500]
[null,null,null,null,null,null,"泊",null,null,null,null,"泊",null,null,null,null,"泊",null,null,null,null,"泊",null,null,null,null,"泊",null,null,null,null,"泊",null,null,null,null,"泊",null,null,null,null,"泊",null,null,null,null,"泊",null,null,null,null,null,null,null,null,null,null,null,null,null,null,null,"泊",null,null,null,null,"泊",null,null,null,null,"泊",null,null,null,null,"泊",null,null,null,null,"泊",null,null,null,null,"泊",null,null,null,null,"泊",null,null,null,null,"泊",null,null,null,null,"泊",null,null,null,null,null,null,null,null,null,null,null,null,null,null,null,"泊",null,null,null,null,"泊",null,null,null,null,"泊",null,null,null,null,"泊",null,null,null,null,"泊",null,null,null,null,"泊",null,null,null,null,"泊",null,null,null,null,"泊",null,null,null,null,"泊"]
[null,1,null,null,null,null,null,null,null,null,null,null,null,null,null,null,null,null,null,null,null,null,null,null,null,null,null,null,null,null,null,null,null,null,null,null,null,null,null,null,null,null,null,null,null,null,null,null,null,null,null,{"$f":"SUM(G21:AY21)","v":0},null,null,null,null,null,1,null,null,null,null,null,null,null,null,null,null,null,null,null,null,null,null,null,null,null,null,null,null,null,null,null,null,null,null,null,null,null,null,null,null,null,null,null,null,null,null,null,null,null,null,null,null,null,null,null,{"$f":"SUM(BK21:DC21)","v":0},null,null,null,null,null,1,null,null,null,null,null,null,null,null,null,null,null,null,null,null,null,null,null,null,null,null,null,null,null,null,null,null,null,null,null,null,null,null,null,null,null,null,null,null,null,null,null,null,null,null,null,null,null,null,null,{"$f":"SUM(DO21:FG21)","v":0},null,null,null,null,null,null,null,null,null,null,null,null,null,null,null,null,null,null,null,null,null,null,null,null,null,null,1]
[null,2,null,null,null,null,null,null,null,null,null,null,null,null,null,null,null,null,null,null,null,null,null,null,null,null,null,null,null,null,null,null,null,null,null,null,null,null,null,null,null,null,null,null,null,null,null,null,null,null,null,{"$f":"SUM(G22:AY22)","v":0},null,null,null,null,null,2,null,null,null,null,null,null,null,null,null,null,null,null,null,null,null,null,null,null,null,null,null,null,null,null,null,null,null,null,null,null,null,null,null,null,null,null,null,null,null,null,null,null,null,null,null,null,null,null,null,{"$f":"SUM(BK22:DC22)","v":0},null,null,null,null,null,2,null,null,null,null,null,null,null,null,null,null,null,null,null,null,null,null,null,null,null,null,null,null,null,null,null,null,null,null,null,null,null,null,null,null,null,null,null,null,null,null,null,null,null,null,null,null,null,null,null,{"$f":"SUM(DO22:FG22)","v":0},null,null,null,null,null,null,null,null,null,null,null,null,null,null,null,null,null,null,null,null,null,null,null,null,null,null,2]
[null,3,null,null,null,null,null,null,null,null,null,null,null,null,null,null,null,null,null,null,null,null,null,null,null,null,null,null,null,null,null,null,null,null,null,null,null,null,null,null,null,null,null,null,null,null,null,null,null,null,null,0,null,null,null,null,null,3,null,null,null,null,null,null,null,null,null,null,null,null,null,null,null,null,null,null,null,null,null,null,null,null,null,null,null,null,null,null,null,null,null,null,null,null,null,null,null,null,null,null,null,null,null,null,null,null,null,0,null,null,null,null,null,3,null,null,null,null,null,null,null,null,null,null,null,null,null,null,null,null,null,null,null,null,null,null,null,null,null,null,null,null,null,null,null,null,null,null,null,null,null,null,null,null,null,null,null,null,null,null,null,null,null,0,null,null,null,null,null,null,null,null,null,null,null,null,null,null,null,null,null,null,null,null,null,null,null,null,null,null,3]
[null,4,null,null,null,null,null,null,null,null,null,null,null,null,null,null,null,null,null,null,null,null,null,null,null,null,null,null,null,null,null,null,null,null,null,null,null,null,null,null,null,null,null,null,null,null,null,null,null,null,null,0,null,null,null,null,null,4,null,null,null,null,null,null,null,null,null,null,null,null,null,null,null,null,null,null,null,null,null,null,null,null,null,null,null,null,null,null,null,null,null,null,null,null,null,null,null,null,null,null,null,null,null,null,null,null,null,0,null,null,null,null,null,4,null,null,null,null,null,null,null,null,null,null,null,null,null,null,null,null,null,null,null,null,null,null,null,null,null,null,null,null,null,null,null,null,null,null,null,null,null,null,null,null,null,null,null,null,null,null,null,null,null,0,null,null,null,null,null,null,null,null,null,null,null,null,null,null,null,null,null,null,null,null,null,null,null,null,null,null,4]
[null,5,null,null,null,null,null,null,null,null,null,null,null,null,null,null,null,null,null,null,null,null,null,null,null,null,null,null,null,null,null,null,null,null,null,null,null,null,null,null,null,null,null,null,null,null,null,null,null,null,null,0,null,null,null,null,null,5,null,null,null,null,null,null,null,null,null,null,null,null,null,null,null,null,null,null,null,null,null,null,null,null,null,null,null,null,null,null,null,null,null,null,null,null,null,null,null,null,null,null,null,null,null,null,null,null,null,0,null,null,null,null,null,5,null,null,null,null,null,null,null,null,null,null,null,null,null,null,null,null,null,null,null,null,null,null,null,null,null,null,null,null,null,null,null,null,null,null,null,null,null,null,null,null,null,null,null,null,null,null,null,null,null,0,null,null,null,null,null,null,null,null,null,null,null,null,null,null,null,null,null,null,null,null,null,null,null,null,null,null,5]
[null,6,null,null,null,null,null,null,null,null,null,null,null,null,null,null,null,null,null,null,null,null,null,null,null,null,null,null,null,null,null,null,null,null,null,null,null,null,null,null,null,null,null,null,null,null,null,null,null,null,null,0,null,null,null,null,null,6,null,null,null,null,null,null,null,null,null,null,null,null,null,null,null,null,null,null,null,null,null,null,null,null,null,null,null,null,null,null,null,null,null,null,null,null,null,null,null,null,null,null,null,null,null,null,null,null,null,0,null,null,null,null,null,6,null,null,null,null,null,null,null,null,null,null,null,null,null,null,null,null,null,null,null,null,null,null,null,null,null,null,null,null,null,null,null,null,null,null,null,null,null,null,null,null,null,null,null,null,null,null,null,null,null,0,null,null,null,null,null,null,null,null,null,null,null,null,null,null,null,null,null,null,null,null,null,null,null,null,null,null,6]
[null,7,null,null,null,null,null,null,null,null,null,null,null,null,null,null,null,null,null,null,null,null,null,null,null,null,null,null,null,null,null,null,null,null,null,null,null,null,null,null,null,null,null,null,null,null,null,null,null,null,null,0,null,null,null,null,null,7,null,null,null,null,null,null,null,null,null,null,null,null,null,null,null,null,null,null,null,null,null,null,null,null,null,null,null,null,null,null,null,null,null,null,null,null,null,null,null,null,null,null,null,null,null,null,null,null,null,0,null,null,null,null,null,7,null,null,null,null,null,null,null,null,null,null,null,null,null,null,null,null,null,null,null,null,null,null,null,null,null,null,null,null,null,null,null,null,null,null,null,null,null,null,null,null,null,null,null,null,null,null,null,null,null,0,null,null,null,null,null,null,null,null,null,null,null,null,null,null,null,null,null,null,null,null,null,null,null,null,null,null,7]
[null,8,null,null,null,null,null,null,null,null,null,null,null,null,null,null,null,null,null,null,null,null,null,null,null,null,null,null,null,null,null,null,null,null,null,null,null,null,null,null,null,null,null,null,null,null,null,null,null,null,null,0,null,null,null,null,null,8,null,null,null,null,null,null,null,null,null,null,null,null,null,null,null,null,null,null,null,null,null,null,null,null,null,null,null,null,null,null,null,null,null,null,null,null,null,null,null,null,null,null,null,null,null,null,null,null,null,0,null,null,null,null,null,8,null,null,null,null,null,null,null,null,null,null,null,null,null,null,null,null,null,null,null,null,null,null,null,null,null,null,null,null,null,null,null,null,null,null,null,null,null,null,null,null,null,null,null,null,null,null,null,null,null,0,null,null,null,null,null,null,null,null,null,null,null,null,null,null,null,null,null,null,null,null,null,null,null,null,null,null,8]
[null,9,null,null,null,null,null,null,null,null,null,null,null,null,null,null,null,null,null,null,null,null,null,null,null,null,null,null,null,null,null,null,null,null,null,null,null,null,null,null,null,null,null,null,null,null,null,null,null,null,null,0,null,null,null,null,null,9,null,null,null,null,null,null,null,null,null,null,null,null,null,null,null,null,null,null,null,null,null,null,null,null,null,null,null,null,null,null,null,null,null,null,null,null,null,null,null,null,null,null,null,null,null,null,null,null,null,0,null,null,null,null,null,9,null,null,null,null,null,null,null,null,null,null,null,null,null,null,null,null,null,null,null,null,null,null,null,null,null,null,null,null,null,null,null,null,null,null,null,null,null,null,null,null,null,null,null,null,null,null,null,null,null,0,null,null,null,null,null,null,null,null,null,null,null,null,null,null,null,null,null,null,null,null,null,null,null,null,null,null,9]
[null,10,null,null,null,null,null,null,null,null,null,null,null,null,null,null,null,null,null,null,null,null,null,null,null,null,null,null,null,null,null,null,null,null,null,null,null,null,null,null,null,null,null,null,null,null,null,null,null,null,null,0,null,null,null,null,null,10,null,null,null,null,null,null,null,null,null,null,null,null,null,null,null,null,null,null,null,null,null,null,null,null,null,null,null,null,null,null,null,null,null,null,null,null,null,null,null,null,null,null,null,null,null,null,null,null,null,0,null,null,null,null,null,10,null,null,null,null,null,null,null,null,null,null,null,null,null,null,null,null,null,null,null,null,null,null,null,null,null,null,null,null,null,null,null,null,null,null,null,null,null,null,null,null,null,null,null,null,null,null,null,null,null,0,null,null,null,null,null,null,null,null,null,null,null,null,null,null,null,null,null,null,null,null,null,null,null,null,null,null,10]
[null,11,null,null,null,null,null,null,null,null,null,null,null,null,null,null,null,null,null,null,null,null,null,null,null,null,null,null,null,null,null,null,null,null,null,null,null,null,null,null,null,null,null,null,null,null,null,null,null,null,null,0,null,null,null,null,null,11,null,null,null,null,null,null,null,null,null,null,null,null,null,null,null,null,null,null,null,null,null,null,null,null,null,null,null,null,null,null,null,null,null,null,null,null,null,null,null,null,null,null,null,null,null,null,null,null,null,0,null,null,null,null,null,11,null,null,null,null,null,null,null,null,null,null,null,null,null,null,null,null,null,null,null,null,null,null,null,null,null,null,null,null,null,null,null,null,null,null,null,null,null,null,null,null,null,null,null,null,null,null,null,null,null,0,null,null,null,null,null,null,null,null,null,null,null,null,null,null,null,null,null,null,null,null,null,null,null,null,null,null,11]
[null,12,null,null,null,null,null,null,null,null,null,null,null,null,null,null,null,null,null,null,null,null,null,null,null,null,null,null,null,null,null,null,null,null,null,null,null,null,null,null,null,null,null,null,null,null,null,null,null,null,null,0,null,null,null,null,null,12,null,null,null,null,null,null,null,null,null,null,null,null,null,null,null,null,null,null,null,null,null,null,null,null,null,null,null,null,null,null,null,null,null,null,null,null,null,null,null,null,null,null,null,null,null,null,null,null,null,0,null,null,null,null,null,12,null,null,null,null,null,null,null,null,null,null,null,null,null,null,null,null,null,null,null,null,null,null,null,null,null,null,null,null,null,null,null,null,null,null,null,null,null,null,null,null,null,null,null,null,null,null,null,null,null,0,null,null,null,null,null,null,null,null,null,null,null,null,null,null,null,null,null,null,null,null,null,null,null,null,null,null,12]
[null,13,null,null,null,null,null,null,null,null,null,null,null,null,null,null,null,null,null,null,null,null,null,null,null,null,null,null,null,null,null,null,null,null,null,null,null,null,null,null,null,null,null,null,null,null,null,null,null,null,null,0,null,null,null,null,null,13,null,null,null,null,null,null,null,null,null,null,null,null,null,null,null,null,null,null,null,null,null,null,null,null,null,null,null,null,null,null,null,null,null,null,null,null,null,null,null,null,null,null,null,null,null,null,null,null,null,0,null,null,null,null,null,13,null,null,null,null,null,null,null,null,null,null,null,null,null,null,null,null,null,null,null,null,null,null,null,null,null,null,null,null,null,null,null,null,null,null,null,null,null,null,null,null,null,null,null,null,null,null,null,null,null,0,null,null,null,null,null,null,null,null,null,null,null,null,null,null,null,null,null,null,null,null,null,null,null,null,null,null,13]
[null,14,null,null,null,null,null,null,null,null,null,null,null,null,null,null,null,null,null,null,null,null,null,null,null,null,null,null,null,null,null,null,null,null,null,null,null,null,null,null,null,null,null,null,null,null,null,null,null,null,null,0,null,null,null,null,null,14,null,null,null,null,null,null,null,null,null,null,null,null,null,null,null,null,null,null,null,null,null,null,null,null,null,null,null,null,null,null,null,null,null,null,null,null,null,null,null,null,null,null,null,null,null,null,null,null,null,0,null,null,null,null,null,14,null,null,null,null,null,null,null,null,null,null,null,null,null,null,null,null,null,null,null,null,null,null,null,null,null,null,null,null,null,null,null,null,null,null,null,null,null,null,null,null,null,null,null,null,null,null,null,null,null,0,null,null,null,null,null,null,null,null,null,null,null,null,null,null,null,null,null,null,null,null,null,null,null,null,null,null,14]
[null,15,null,null,null,null,null,null,null,null,null,null,null,null,null,null,null,null,null,null,null,null,null,null,null,null,null,null,null,null,null,null,null,null,null,null,null,null,null,null,null,null,null,null,null,null,null,null,null,null,null,0,null,null,null,null,null,15,null,null,null,null,null,null,null,null,null,null,null,null,null,null,null,null,null,null,null,null,null,null,null,null,null,null,null,null,null,null,null,null,null,null,null,null,null,null,null,null,null,null,null,null,null,null,null,null,null,0,null,null,null,null,null,15,null,null,null,null,null,null,null,null,null,null,null,null,null,null,null,null,null,null,null,null,null,null,null,null,null,null,null,null,null,null,null,null,null,null,null,null,null,null,null,null,null,null,null,null,null,null,null,null,null,0,null,null,null,null,null,null,null,null,null,null,null,null,null,null,null,null,null,null,null,null,null,null,null,null,null,null,15]
[null,16,null,null,null,null,null,null,null,null,null,null,null,null,null,null,null,null,null,null,null,null,null,null,null,null,null,null,null,null,null,null,null,null,null,null,null,null,null,null,null,null,null,null,null,null,null,null,null,null,null,0,null,null,null,null,null,16,null,null,null,null,null,null,null,null,null,null,null,null,null,null,null,null,null,null,null,null,null,null,null,null,null,null,null,null,null,null,null,null,null,null,null,null,null,null,null,null,null,null,null,null,null,null,null,null,null,0,null,null,null,null,null,16,null,null,null,null,null,null,null,null,null,null,null,null,null,null,null,null,null,null,null,null,null,null,null,null,null,null,null,null,null,null,null,null,null,null,null,null,null,null,null,null,null,null,null,null,null,null,null,null,null,0,null,null,null,null,null,null,null,null,null,null,null,null,null,null,null,null,null,null,null,null,null,null,null,null,null,null,16]
[null,17,null,null,null,null,null,null,null,null,null,null,null,null,null,null,null,null,null,null,null,null,null,null,null,null,null,null,null,null,null,null,null,null,null,null,null,null,null,null,null,null,null,null,null,null,null,null,null,null,null,0,null,null,null,null,null,17,null,null,null,null,null,null,null,null,null,null,null,null,null,null,null,null,null,null,null,null,null,null,null,null,null,null,null,null,null,null,null,null,null,null,null,null,null,null,null,null,null,null,null,null,null,null,null,null,null,0,null,null,null,null,null,17,null,null,null,null,null,null,null,null,null,null,null,null,null,null,null,null,null,null,null,null,null,null,null,null,null,null,null,null,null,null,null,null,null,null,null,null,null,null,null,null,null,null,null,null,null,null,null,null,null,0,null,null,null,null,null,null,null,null,null,null,null,null,null,null,null,null,null,null,null,null,null,null,null,null,null,null,17]
[null,18,null,null,null,null,null,null,null,null,null,null,null,null,null,null,null,null,null,null,null,null,null,null,null,null,null,null,null,null,null,null,null,null,null,null,null,null,null,null,null,null,null,null,null,null,null,null,null,null,null,0,null,null,null,null,null,18,null,null,null,null,null,null,null,null,null,null,null,null,null,null,null,null,null,null,null,null,null,null,null,null,null,null,null,null,null,null,null,null,null,null,null,null,null,null,null,null,null,null,null,null,null,null,null,null,null,0,null,null,null,null,null,18,null,null,null,null,null,null,null,null,null,null,null,null,null,null,null,null,null,null,null,null,null,null,null,null,null,null,null,null,null,null,null,null,null,null,null,null,null,null,null,null,null,null,null,null,null,null,null,null,null,0,null,null,null,null,null,null,null,null,null,null,null,null,null,null,null,null,null,null,null,null,null,null,null,null,null,null,18]
[null,19,null,null,null,null,null,null,null,null,null,null,null,null,null,null,null,null,null,null,null,null,null,null,null,null,null,null,null,null,null,null,null,null,null,null,null,null,null,null,null,null,null,null,null,null,null,null,null,null,null,0,null,null,null,null,null,19,null,null,null,null,null,null,null,null,null,null,null,null,null,null,null,null,null,null,null,null,null,null,null,null,null,null,null,null,null,null,null,null,null,null,null,null,null,null,null,null,null,null,null,null,null,null,null,null,null,0,null,null,null,null,null,19,null,null,null,null,null,null,null,null,null,null,null,null,null,null,null,null,null,null,null,null,null,null,null,null,null,null,null,null,null,null,null,null,null,null,null,null,null,null,null,null,null,null,null,null,null,null,null,null,null,0,null,null,null,null,null,null,null,null,null,null,null,null,null,null,null,null,null,null,null,null,null,null,null,null,null,null,19]
[null,20,null,null,null,null,null,null,null,null,null,null,null,null,null,null,null,null,null,null,null,null,null,null,null,null,null,null,null,null,null,null,null,null,null,null,null,null,null,null,null,null,null,null,null,null,null,null,null,null,null,0,null,null,null,null,null,20,null,null,null,null,null,null,null,null,null,null,null,null,null,null,null,null,null,null,null,null,null,null,null,null,null,null,null,null,null,null,null,null,null,null,null,null,null,null,null,null,null,null,null,null,null,null,null,null,null,0,null,null,null,null,null,20,null,null,null,null,null,null,null,null,null,null,null,null,null,null,null,null,null,null,null,null,null,null,null,null,null,null,null,null,null,null,null,null,null,null,null,null,null,null,null,null,null,null,null,null,null,null,null,null,null,0,null,null,null,null,null,null,null,null,null,null,null,null,null,null,null,null,null,null,null,null,null,null,null,null,null,null,20]
[null,21,null,null,null,null,null,null,null,null,null,null,null,null,null,null,null,null,null,null,null,null,null,null,null,null,null,null,null,null,null,null,null,null,null,null,null,null,null,null,null,null,null,null,null,null,null,null,null,null,null,0,null,null,null,null,null,21,null,null,null,null,null,null,null,null,null,null,null,null,null,null,null,null,null,null,null,null,null,null,null,null,null,null,null,null,null,null,null,null,null,null,null,null,null,null,null,null,null,null,null,null,null,null,null,null,null,0,null,null,null,null,null,21,null,null,null,null,null,null,null,null,null,null,null,null,null,null,null,null,null,null,null,null,null,null,null,null,null,null,null,null,null,null,null,null,null,null,null,null,null,null,null,null,null,null,null,null,null,null,null,null,null,0,null,null,null,null,null,null,null,null,null,null,null,null,null,null,null,null,null,null,null,null,null,null,null,null,null,null,21]
[null,22,null,null,null,null,null,null,null,null,null,null,null,null,null,null,null,null,null,null,null,null,null,null,null,null,null,null,null,null,null,null,null,null,null,null,null,null,null,null,null,null,null,null,null,null,null,null,null,null,null,0,null,null,null,null,null,22,null,null,null,null,null,null,null,null,null,null,null,null,null,null,null,null,null,null,null,null,null,null,null,null,null,null,null,null,null,null,null,null,null,null,null,null,null,null,null,null,null,null,null,null,null,null,null,null,null,0,null,null,null,null,null,22,null,null,null,null,null,null,null,null,null,null,null,null,null,null,null,null,null,null,null,null,null,null,null,null,null,null,null,null,null,null,null,null,null,null,null,null,null,null,null,null,null,null,null,null,null,null,null,null,null,0,null,null,null,null,null,null,null,null,null,null,null,null,null,null,null,null,null,null,null,null,null,null,null,null,null,null,22]
[null,23,null,null,null,null,null,null,null,null,null,null,null,null,null,null,null,null,null,null,null,null,null,null,null,null,null,null,null,null,null,null,null,null,null,null,null,null,null,null,null,null,null,null,null,null,null,null,null,null,null,0,null,null,null,null,null,23,null,null,null,null,null,null,null,null,null,null,null,null,null,null,null,null,null,null,null,null,null,null,null,null,null,null,null,null,null,null,null,null,null,null,null,null,null,null,null,null,null,null,null,null,null,null,null,null,null,0,null,null,null,null,null,23,null,null,null,null,null,null,null,null,null,null,null,null,null,null,null,null,null,null,null,null,null,null,null,null,null,null,null,null,null,null,null,null,null,null,null,null,null,null,null,null,null,null,null,null,null,null,null,null,null,0,null,null,null,null,null,null,null,null,null,null,null,null,null,null,null,null,null,null,null,null,null,null,null,null,null,null,23]
[null,24,null,null,null,null,null,null,null,null,null,null,null,null,null,null,null,null,null,null,null,null,null,null,null,null,null,null,null,null,null,null,null,null,null,null,null,null,null,null,null,null,null,null,null,null,null,null,null,null,null,0,null,null,null,null,null,24,null,null,null,null,null,null,null,null,null,null,null,null,null,null,null,null,null,null,null,null,null,null,null,null,null,null,null,null,null,null,null,null,null,null,null,null,null,null,null,null,null,null,null,null,null,null,null,null,null,0,null,null,null,null,null,24,null,null,null,null,null,null,null,null,null,null,null,null,null,null,null,null,null,null,null,null,null,null,null,null,null,null,null,null,null,null,null,null,null,null,null,null,null,null,null,null,null,null,null,null,null,null,null,null,null,0,null,null,null,null,null,null,null,null,null,null,null,null,null,null,null,null,null,null,null,null,null,null,null,null,null,null,24]
[null,25,null,null,null,null,null,null,null,null,null,null,null,null,null,null,null,null,null,null,null,null,null,null,null,null,null,null,null,null,null,null,null,null,null,null,null,null,null,null,null,null,null,null,null,null,null,null,null,null,null,0,null,null,null,null,null,25,null,null,null,null,null,null,null,null,null,null,null,null,null,null,null,null,null,null,null,null,null,null,null,null,null,null,null,null,null,null,null,null,null,null,null,null,null,null,null,null,null,null,null,null,null,null,null,null,null,0,null,null,null,null,null,25,null,null,null,null,null,null,null,null,null,null,null,null,null,null,null,null,null,null,null,null,null,null,null,null,null,null,null,null,null,null,null,null,null,null,null,null,null,null,null,null,null,null,null,null,null,null,null,null,null,0,null,null,null,null,null,null,null,null,null,null,null,null,null,null,null,null,null,null,null,null,null,null,null,null,null,null,25]
[null,26,null,null,null,null,null,null,null,null,null,null,null,null,null,null,null,null,null,null,null,null,null,null,null,null,null,null,null,null,null,null,null,null,null,null,null,null,null,null,null,null,null,null,null,null,null,null,null,null,null,0,null,null,null,null,null,26,null,null,null,null,null,null,null,null,null,null,null,null,null,null,null,null,null,null,null,null,null,null,null,null,null,null,null,null,null,null,null,null,null,null,null,null,null,null,null,null,null,null,null,null,null,null,null,null,null,0,null,null,null,null,null,26,null,null,null,null,null,null,null,null,null,null,null,null,null,null,null,null,null,null,null,null,null,null,null,null,null,null,null,null,null,null,null,null,null,null,null,null,null,null,null,null,null,null,null,null,null,null,null,null,null,0,null,null,null,null,null,null,null,null,null,null,null,null,null,null,null,null,null,null,null,null,null,null,null,null,null,null,26]
[null,27,null,null,null,null,null,null,null,null,null,null,null,null,null,null,null,null,null,null,null,null,null,null,null,null,null,null,null,null,null,null,null,null,null,null,null,null,null,null,null,null,null,null,null,null,null,null,null,null,null,0,null,null,null,null,null,27,null,null,null,null,null,null,null,null,null,null,null,null,null,null,null,null,null,null,null,null,null,null,null,null,null,null,null,null,null,null,null,null,null,null,null,null,null,null,null,null,null,null,null,null,null,null,null,null,null,0,null,null,null,null,null,27,null,null,null,null,null,null,null,null,null,null,null,null,null,null,null,null,null,null,null,null,null,null,null,null,null,null,null,null,null,null,null,null,null,null,null,null,null,null,null,null,null,null,null,null,null,null,null,null,null,0,null,null,null,null,null,null,null,null,null,null,null,null,null,null,null,null,null,null,null,null,null,null,null,null,null,null,27]
[null,28,null,null,null,null,null,null,null,null,null,null,null,null,null,null,null,null,null,null,null,null,null,null,null,null,null,null,null,null,null,null,null,null,null,null,null,null,null,null,null,null,null,null,null,null,null,null,null,null,null,0,null,null,null,null,null,28,null,null,null,null,null,null,null,null,null,null,null,null,null,null,null,null,null,null,null,null,null,null,null,null,null,null,null,null,null,null,null,null,null,null,null,null,null,null,null,null,null,null,null,null,null,null,null,null,null,0,null,null,null,null,null,28,null,null,null,null,null,null,null,null,null,null,null,null,null,null,null,null,null,null,null,null,null,null,null,null,null,null,null,null,null,null,null,null,null,null,null,null,null,null,null,null,null,null,null,null,null,null,null,null,null,0,null,null,null,null,null,null,null,null,null,null,null,null,null,null,null,null,null,null,null,null,null,null,null,null,null,null,28]
[null,29,null,null,null,null,null,null,null,null,null,null,null,null,null,null,null,null,null,null,null,null,null,null,null,null,null,null,null,null,null,null,null,null,null,null,null,null,null,null,null,null,null,null,null,null,null,null,null,null,null,0,null,null,null,null,null,29,null,null,null,null,null,null,null,null,null,null,null,null,null,null,null,null,null,null,null,null,null,null,null,null,null,null,null,null,null,null,null,null,null,null,null,null,null,null,null,null,null,null,null,null,null,null,null,null,null,0,null,null,null,null,null,29,null,null,null,null,null,null,null,null,null,null,null,null,null,null,null,null,null,null,null,null,null,null,null,null,null,null,null,null,null,null,null,null,null,null,null,null,null,null,null,null,null,null,null,null,null,null,null,null,null,0,null,null,null,null,null,null,null,null,null,null,null,null,null,null,null,null,null,null,null,null,null,null,null,null,null,null,29]
[null,30,null,null,null,null,null,null,null,null,null,null,null,null,null,null,null,null,null,null,null,null,null,null,null,null,null,null,null,null,null,null,null,null,null,null,null,null,null,null,null,null,null,null,null,null,null,null,null,null,null,0,null,null,null,null,null,30,null,null,null,null,null,null,null,null,null,null,null,null,null,null,null,null,null,null,null,null,null,null,null,null,null,null,null,null,null,null,null,null,null,null,null,null,null,null,null,null,null,null,null,null,null,null,null,null,null,0,null,null,null,null,null,30,null,null,null,null,null,null,null,null,null,null,null,null,null,null,null,null,null,null,null,null,null,null,null,null,null,null,null,null,null,null,null,null,null,null,null,null,null,null,null,null,null,null,null,null,null,null,null,null,null,0,null,null,null,null,null,null,null,null,null,null,null,null,null,null,null,null,null,null,null,null,null,null,null,null,null,null,30]
[null,31,null,null,null,null,null,null,null,null,null,null,null,null,null,null,null,null,null,null,null,null,null,null,null,null,null,null,null,null,null,null,null,null,null,null,null,null,null,null,null,null,null,null,null,null,null,null,null,null,null,0,null,null,null,null,null,31,null,null,null,null,null,null,null,null,null,null,null,null,null,null,null,null,null,null,null,null,null,null,null,null,null,null,null,null,null,null,null,null,null,null,null,null,null,null,null,null,null,null,null,null,null,null,null,null,null,0,null,null,null,null,null,31,null,null,null,null,null,null,null,null,null,null,null,null,null,null,null,null,null,null,null,null,null,null,null,null,null,null,null,null,null,null,null,null,null,null,null,null,null,null,null,null,null,null,null,null,null,null,null,null,null,0,null,null,null,null,null,null,null,null,null,null,null,null,null,null,null,null,null,null,null,null,null,null,null,null,null,null,31]
[null,"合計",null,null,null,null,{"$f":"SUM(G20:K51)","v":0},null,null,null,null,{"$f":"SUM(L20:P51)","v":0},null,null,null,null,{"$f":"SUM(Q20:U51)","v":0},null,null,null,null,{"$f":"SUM(V20:Z51)","v":0},null,null,null,null,{"$f":"SUM(AA20:AE51)","v":0},null,null,null,null,{"$f":"SUM(AF20:AJ51)","v":0},null,null,null,null,{"$f":"SUM(AK20:AO51)","v":0},null,null,null,null,{"$f":"SUM(AP21:AT51)","v":0},null,null,null,null,{"$f":"SUM(AU21:AY51)","v":0},null,null,null,null,{"$f":"SUM(AZ20:BE51)","v":0},null,null,null,null,null,"合計",null,null,null,null,{"$f":"SUM(BK20:BO51)","v":0},null,null,null,null,{"$f":"SUM(BP20:BT51)","v":0},null,null,null,null,{"$f":"SUM(BU20:BY51)","v":0},null,null,null,null,{"$f":"SUM(BZ20:CD51)","v":0},null,null,null,null,{"$f":"SUM(CE20:CI51)","v":0},null,null,null,null,{"$f":"SUM(CJ20:CN51)","v":0},null,null,null,null,{"$f":"SUM(CO20:CS51)","v":0},null,null,null,null,{"$f":"SUM(CT21:CX51)","v":0},null,null,null,null,{"$f":"SUM(CY21:DC51)","v":0},null,null,null,null,{"$f":"SUM(DD20:DI51)","v":0},null,null,null,null,null,"合計",null,null,null,null,{"$f":"SUM(DO20:DS51)","v":0},null,null,null,null,{"$f":"SUM(DT20:DX51)","v":0},null,null,null,null,{"$f":"SUM(DY20:EC51)","v":0},null,null,null,null,{"$f":"SUM(ED20:EH51)","v":0},null,null,null,null,{"$f":"SUM(EI20:EM51)","v":0},null,null,null,null,{"$f":"SUM(EN20:ER51)","v":0},null,null,null,null,{"$f":"SUM(ES20:EW51)","v":0},null,null,null,null,{"$f":"SUM(EX21:FB51)","v":0},null,null,null,null,{"$f":"SUM(FC21:FG51)","v":0},null,null,null,null,{"$f":"SUM(FH20:FM51)","v":0}]
[null,null,null,null,null,null,null,null,null,null,null,null,null,null,null,null,null,null,null,null,null,null,null,null,null,null,null,null,null,null,null,null,null,null,null,null,null,null,null,null,null,{"$f":"SUM(AP21:AY51)","v":0},null,null,null,null,null,null,null,null,null,null,null,null,null,null,null,null,null,null,null,null,null,null,null,null,null,null,null,null,null,null,null,null,null,null,null,null,null,null,null,null,null,null,null,null,null,null,null,null,null,null,null,null,null,null,null,{"$f":"SUM(CT21:DC51)","v":0},null,null,null,null,null,null,null,null,null,null,null,null,null,null,null,null,null,null,null,null,null,null,null,null,null,null,null,null,null,null,null,null,null,null,null,null,null,null,null,null,null,null,null,null,null,null,null,null,null,null,null,null,null,null,null,{"$f":"SUM(EX21:FG51)","v":0}]
[]
[]
[null,null,null,null,null,null,null,null,null,null,null,null,null,null,null,null,null,null,null,null,null,null,null,null,null,null,null,null,null,null,null,null,null,null,null,null,null,null,null,null,null,null,null,null,null,null,null,null,null,null,null,null,null,null,null,null,null,null,null,null,null,null,null,null,null,null,null,null,null,null,null,null,null,null,null,null,null,null,null,null,null,null,null,null,null,null,null,null,null,null,null,null,null,null,null,null,null,null,null,null,null,null,null,null,null,null,null,null,null,null,null,null,null,null,null,null,null,null,null,null,null,null,null,null,null,null,null,null,null,null,null,null,null,null,null,null,null,null,null,null,null,null,null,null,null,null,null,null,null,null,null,null,null,null,null,null,null,null,null,null,null,null,null,null,null,null,null,null,null,null,null,null,null,null,null,null,null,null,null,null,null,null,null,null,null,null,null,null,null,null,8,5,{"$f":"IF(AND($GI$13=GI56,$GJ$13=GJ56),1,0)","v":0},8,6,30,{"$f":"IF($GK56=1,GL56,\"\")","v":""},{"$f":"IF($GK56=1,GM56,\"\")","v":""},""]
[null,null,null,null,null,null,null,null,null,null,null,null,null,null,null,null,null,null,null,null,null,null,null,null,null,null,null,null,null,null,null,null,null,null,null,null,null,null,null,null,null,null,null,null,null,null,null,null,null,null,null,null,null,null,null,null,null,null,null,null,null,null,null,null,null,null,null,null,null,null,null,null,null,null,null,null,null,null,null,null,null,null,null,null,null,null,null,null,null,null,null,null,null,null,null,null,null,null,null,null,null,null,null,null,null,null,null,null,null,null,null,null,null,null,null,null,null,null,null,null,null,null,null,null,null,null,null,null,null,null,null,null,null,null,null,null,null,null,null,null,null,null,null,null,null,null,null,null,null,null,null,null,null,null,null,null,null,null,null,null,null,null,null,null,null,null,null,null,null,null,null,null,null,null,null,null,null,null,null,null,null,null,null,null,null,null,null,null,null,null,8,8,{"$f":"IF(AND($GI$13=GI57,$GJ$13=GJ57),1,0)","v":0},8,9,30,{"$f":"IF($GK57=1,GL57,\"\")","v":""},{"$f":"IF($GK57=1,GM57,\"\")","v":""},{"$f":"IF($GK57=1,GN57,\"\")","v":""}]
[null,null,null,null,null,null,null,null,null,null,null,null,null,null,null,null,null,null,null,null,null,null,null,null,null,null,null,null,null,null,null,null,null,null,null,null,null,null,null,null,null,null,null,null,null,null,null,null,null,null,null,null,null,null,null,null,null,null,null,null,null,null,null,null,null,null,null,null,null,null,null,null,null,null,null,null,null,null,null,null,null,null,null,null,null,null,null,null,null,null,null,null,null,null,null,null,null,null,null,null,null,null,null,null,null,null,null,null,null,null,null,null,null,null,null,null,null,null,null,null,null,null,null,null,null,null,null,null,null,null,null,null,null,null,null,null,null,null,null,null,null,null,null,null,null,null,null,null,null,null,null,null,null,null,null,null,null,null,null,null,null,null,null,null,null,null,null,null,null,null,null,null,null,null,null,null,null,null,null,null,null,null,null,null,null,null,null,null,null,null,8,11,0,9,1,4,"","",""]
[null,null,null,null,null,null,null,null,null,null,null,null,null,null,null,null,null,null,null,null,null,null,null,null,null,null,null,null,null,null,null,null,null,null,null,null,null,null,null,null,null,null,null,null,null,null,null,null,null,null,null,null,null,null,null,null,null,null,null,null,null,null,null,null,null,null,null,null,null,null,null,null,null,null,null,null,null,null,null,null,null,null,null,null,null,null,null,null,null,null,null,null,null,null,null,null,null,null,null,null,null,null,null,null,null,null,null,null,null,null,null,null,null,null,null,null,null,null,null,null,null,null,null,null,null,null,null,null,null,null,null,null,null,null,null,null,null,null,null,null,null,null,null,null,null,null,null,null,null,null,null,null,null,null,null,null,null,null,null,null,null,null,null,null,null,null,null,null,null,null,null,null,null,null,null,null,null,null,null,null,null,null,null,null,null,null,null,null,null,null,9,2,0,9,3,31,"","",""]
[null,null,null,null,null,null,null,null,null,null,null,null,null,null,null,null,null,null,null,null,null,null,null,null,null,null,null,null,null,null,null,null,null,null,null,null,null,null,null,null,null,null,null,null,null,null,null,null,null,null,null,null,null,null,null,null,null,null,null,null,null,null,null,null,null,null,null,null,null,null,null,null,null,null,null,null,null,null,null,null,null,null,null,null,null,null,null,null,null,null,null,null,null,null,null,null,null,null,null,null,null,null,null,null,null,null,null,null,null,null,null,null,null,null,null,null,null,null,null,null,null,null,null,null,null,null,null,null,null,null,null,null,null,null,null,null,null,null,null,null,null,null,null,null,null,null,null,null,null,null,null,null,null,null,null,null,null,null,null,null,null,null,null,null,null,null,null,null,null,null,null,null,null,null,null,null,null,null,null,null,null,null,null,null,null,null,null,null,null,null,9,5,0,9,6,30,"","",""]
[null,null,null,null,null,null,null,null,null,null,null,null,null,null,null,null,null,null,null,null,null,null,null,null,null,null,null,null,null,null,null,null,null,null,null,null,null,null,null,null,null,null,null,null,null,null,null,null,null,null,null,null,null,null,null,null,null,null,null,null,null,null,null,null,null,null,null,null,null,null,null,null,null,null,null,null,null,null,null,null,null,null,null,null,null,null,null,null,null,null,null,null,null,null,null,null,null,null,null,null,null,null,null,null,null,null,null,null,null,null,null,null,null,null,null,null,null,null,null,null,null,null,null,null,null,null,null,null,null,null,null,null,null,null,null,null,null,null,null,null,null,null,null,null,null,null,null,null,null,null,null,null,null,null,null,null,null,null,null,null,null,null,null,null,null,null,null,null,null,null,null,null,null,null,null,null,null,null,null,null,null,null,null,null,null,null,null,null,null,null,9,8,0,9,9,30,"","",""]
[null,null,null,null,null,null,null,null,null,null,null,null,null,null,null,null,null,null,null,null,null,null,null,null,null,null,null,null,null,null,null,null,null,null,null,null,null,null,null,null,null,null,null,null,null,null,null,null,null,null,null,null,null,null,null,null,null,null,null,null,null,null,null,null,null,null,null,null,null,null,null,null,null,null,null,null,null,null,null,null,null,null,null,null,null,null,null,null,null,null,null,null,null,null,null,null,null,null,null,null,null,null,null,null,null,null,null,null,null,null,null,null,null,null,null,null,null,null,null,null,null,null,null,null,null,null,null,null,null,null,null,null,null,null,null,null,null,null,null,null,null,null,null,null,null,null,null,null,null,null,null,null,null,null,null,null,null,null,null,null,null,null,null,null,null,null,null,null,null,null,null,null,null,null,null,null,null,null,null,null,null,null,null,null,null,null,null,null,null,null,9,11,0,10,1,4,"","",""]
[null,null,null,null,null,null,null,null,null,null,null,null,null,null,null,null,null,null,null,null,null,null,null,null,null,null,null,null,null,null,null,null,null,null,null,null,null,null,null,null,null,null,null,null,null,null,null,null,null,null,null,null,null,null,null,null,null,null,null,null,null,null,null,null,null,null,null,null,null,null,null,null,null,null,null,null,null,null,null,null,null,null,null,null,null,null,null,null,null,null,null,null,null,null,null,null,null,null,null,null,null,null,null,null,null,null,null,null,null,null,null,null,null,null,null,null,null,null,null,null,null,null,null,null,null,null,null,null,null,null,null,null,null,null,null,null,null,null,null,null,null,null,null,null,null,null,null,null,null,null,null,null,null,null,null,null,null,null,null,null,null,null,null,null,null,null,null,null,null,null,null,null,null,null,null,null,null,null,null,null,null,null,null,null,null,null,null,null,null,null,10,2,0,10,3,31,"","",""]
[null,null,null,null,null,null,null,null,null,null,null,null,null,null,null,null,null,null,null,null,null,null,null,null,null,null,null,null,null,null,null,null,null,null,null,null,null,null,null,null,null,null,null,null,null,null,null,null,null,null,null,null,null,null,null,null,null,null,null,null,null,null,null,null,null,null,null,null,null,null,null,null,null,null,null,null,null,null,null,null,null,null,null,null,null,null,null,null,null,null,null,null,null,null,null,null,null,null,null,null,null,null,null,null,null,null,null,null,null,null,null,null,null,null,null,null,null,null,null,null,null,null,null,null,null,null,null,null,null,null,null,null,null,null,null,null,null,null,null,null,null,null,null,null,null,null,null,null,null,null,null,null,null,null,null,null,null,null,null,null,null,null,null,null,null,null,null,null,null,null,null,null,null,null,null,null,null,null,null,null,null,null,null,null,null,null,null,null,null,null,10,5,0,10,6,30,"","",""]
[null,null,null,null,null,null,null,null,null,null,null,null,null,null,null,null,null,null,null,null,null,null,null,null,null,null,null,null,null,null,null,null,null,null,null,null,null,null,null,null,null,null,null,null,null,null,null,null,null,null,null,null,null,null,null,null,null,null,null,null,null,null,null,null,null,null,null,null,null,null,null,null,null,null,null,null,null,null,null,null,null,null,null,null,null,null,null,null,null,null,null,null,null,null,null,null,null,null,null,null,null,null,null,null,null,null,null,null,null,null,null,null,null,null,null,null,null,null,null,null,null,null,null,null,null,null,null,null,null,null,null,null,null,null,null,null,null,null,null,null,null,null,null,null,null,null,null,null,null,null,null,null,null,null,null,null,null,null,null,null,null,null,null,null,null,null,null,null,null,null,null,null,null,null,null,null,null,null,null,null,null,null,null,null,null,null,null,null,null,null,10,8,0,10,10,1,"","",""]
[null,null,null,null,null,null,null,null,null,null,null,null,null,null,null,null,null,null,null,null,null,null,null,null,null,null,null,null,null,null,null,null,null,null,null,null,null,null,null,null,null,null,null,null,null,null,null,null,null,null,null,null,null,null,null,null,null,null,null,null,null,null,null,null,null,null,null,null,null,null,null,null,null,null,null,null,null,null,null,null,null,null,null,null,null,null,null,null,null,null,null,null,null,null,null,null,null,null,null,null,null,null,null,null,null,null,null,null,null,null,null,null,null,null,null,null,null,null,null,null,null,null,null,null,null,null,null,null,null,null,null,null,null,null,null,null,null,null,null,null,null,null,null,null,null,null,null,null,null,null,null,null,null,null,null,null,null,null,null,null,null,null,null,null,null,null,null,null,null,null,null,null,null,null,null,null,null,null,null,null,null,null,null,null,null,null,null,null,null,null,10,11,0,11,1,4,"","",""]
[null,null,null,null,null,null,null,null,null,null,null,null,null,null,null,null,null,null,null,null,null,null,null,null,null,null,null,null,null,null,null,null,null,null,null,null,null,null,null,null,null,null,null,null,null,null,null,null,null,null,null,null,null,null,null,null,null,null,null,null,null,null,null,null,null,null,null,null,null,null,null,null,null,null,null,null,null,null,null,null,null,null,null,null,null,null,null,null,null,null,null,null,null,null,null,null,null,null,null,null,null,null,null,null,null,null,null,null,null,null,null,null,null,null,null,null,null,null,null,null,null,null,null,null,null,null,null,null,null,null,null,null,null,null,null,null,null,null,null,null,null,null,null,null,null,null,null,null,null,null,null,null,null,null,null,null,null,null,null,null,null,null,null,null,null,null,null,null,null,null,null,null,null,null,null,null,null,null,null,null,null,null,null,null,null,null,null,null,null,null,11,2,0,11,4,3,"","",""]
[null,null,null,null,null,null,null,null,null,null,null,null,null,null,null,null,null,null,null,null,null,null,null,null,null,null,null,null,null,null,null,null,null,null,null,null,null,null,null,null,null,null,null,null,null,null,null,null,null,null,null,null,null,null,null,null,null,null,null,null,null,null,null,null,null,null,null,null,null,null,null,null,null,null,null,null,null,null,null,null,null,null,null,null,null,null,null,null,null,null,null,null,null,null,null,null,null,null,null,null,null,null,null,null,null,null,null,null,null,null,null,null,null,null,null,null,null,null,null,null,null,null,null,null,null,null,null,null,null,null,null,null,null,null,null,null,null,null,null,null,null,null,null,null,null,null,null,null,null,null,null,null,null,null,null,null,null,null,null,null,null,null,null,null,null,null,null,null,null,null,null,null,null,null,null,null,null,null,null,null,null,null,null,null,null,null,null,null,null,null,11,5,0,11,7,2,"","",""]
[null,null,null,null,null,null,null,null,null,null,null,null,null,null,null,null,null,null,null,null,null,null,null,null,null,null,null,null,null,null,null,null,null,null,null,null,null,null,null,null,null,null,null,null,null,null,null,null,null,null,null,null,null,null,null,null,null,null,null,null,null,null,null,null,null,null,null,null,null,null,null,null,null,null,null,null,null,null,null,null,null,null,null,null,null,null,null,null,null,null,null,null,null,null,null,null,null,null,null,null,null,null,null,null,null,null,null,null,null,null,null,null,null,null,null,null,null,null,null,null,null,null,null,null,null,null,null,null,null,null,null,null,null,null,null,null,null,null,null,null,null,null,null,null,null,null,null,null,null,null,null,null,null,null,null,null,null,null,null,null,null,null,null,null,null,null,null,null,null,null,null,null,null,null,null,null,null,null,null,null,null,null,null,null,null,null,null,null,null,null,11,8,0,11,10,1,"","",""]
[null,null,null,null,null,null,null,null,null,null,null,null,null,null,null,null,null,null,null,null,null,null,null,null,null,null,null,null,null,null,null,null,null,null,null,null,null,null,null,null,null,null,null,null,null,null,null,null,null,null,null,null,null,null,null,null,null,null,null,null,null,null,null,null,null,null,null,null,null,null,null,null,null,null,null,null,null,null,null,null,null,null,null,null,null,null,null,null,null,null,null,null,null,null,null,null,null,null,null,null,null,null,null,null,null,null,null,null,null,null,null,null,null,null,null,null,null,null,null,null,null,null,null,null,null,null,null,null,null,null,null,null,null,null,null,null,null,null,null,null,null,null,null,null,null,null,null,null,null,null,null,null,null,null,null,null,null,null,null,null,null,null,null,null,null,null,null,null,null,null,null,null,null,null,null,null,null,null,null,null,null,null,null,null,null,null,null,null,null,null,11,11,0,12,1,4,"","",""]
[null,null,null,null,null,null,null,null,null,null,null,null,null,null,null,null,null,null,null,null,null,null,null,null,null,null,null,null,null,null,null,null,null,null,null,null,null,null,null,null,null,null,null,null,null,null,null,null,null,null,null,null,null,null,null,null,null,null,null,null,null,null,null,null,null,null,null,null,null,null,null,null,null,null,null,null,null,null,null,null,null,null,null,null,null,null,null,null,null,null,null,null,null,null,null,null,null,null,null,null,null,null,null,null,null,null,null,null,null,null,null,null,null,null,null,null,null,null,null,null,null,null,null,null,null,null,null,null,null,null,null,null,null,null,null,null,null,null,null,null,null,null,null,null,null,null,null,null,null,null,null,null,null,null,null,null,null,null,null,null,null,null,null,null,null,null,null,null,null,null,null,null,null,null,null,null,null,null,null,null,null,null,null,null,null,null,null,null,null,null,12,2,0,12,4,1,"","",""]
[null,null,null,null,null,null,null,null,null,null,null,null,null,null,null,null,null,null,null,null,null,null,null,null,null,null,null,null,null,null,null,null,null,null,null,null,null,null,null,null,null,null,null,null,null,null,null,null,null,null,null,null,null,null,null,null,null,null,null,null,null,null,null,null,null,null,null,null,null,null,null,null,null,null,null,null,null,null,null,null,null,null,null,null,null,null,null,null,null,null,null,null,null,null,null,null,null,null,null,null,null,null,null,null,null,null,null,null,null,null,null,null,null,null,null,null,null,null,null,null,null,null,null,null,null,null,null,null,null,null,null,null,null,null,null,null,null,null,null,null,null,null,null,null,null,null,null,null,null,null,null,null,null,null,null,null,null,null,null,null,null,null,null,null,null,null,null,null,null,null,null,null,null,null,null,null,null,null,null,null,null,null,null,null,null,null,null,null,null,null,12,5,0,12,7,1,"","",""]
[null,null,null,null,null,null,null,null,null,null,null,null,null,null,null,null,null,null,null,null,null,null,null,null,null,null,null,null,null,null,null,null,null,null,null,null,null,null,null,null,null,null,null,null,null,null,null,null,null,null,null,null,null,null,null,null,null,null,null,null,null,null,null,null,null,null,null,null,null,null,null,null,null,null,null,null,null,null,null,null,null,null,null,null,null,null,null,null,null,null,null,null,null,null,null,null,null,null,null,null,null,null,null,null,null,null,null,null,null,null,null,null,null,null,null,null,null,null,null,null,null,null,null,null,null,null,null,null,null,null,null,null,null,null,null,null,null,null,null,null,null,null,null,null,null,null,null,null,null,null,null,null,null,null,null,null,null,null,null,null,null,null,null,null,null,null,null,null,null,null,null,null,null,null,null,null,null,null,null,null,null,null,null,null,null,null,null,null,null,null,12,8,0,12,9,30,"","",""]
[null,null,null,null,null,null,null,null,null,null,null,null,null,null,null,null,null,null,null,null,null,null,null,null,null,null,null,null,null,null,null,null,null,null,null,null,null,null,null,null,null,null,null,null,null,null,null,null,null,null,null,null,null,null,null,null,null,null,null,null,null,null,null,null,null,null,null,null,null,null,null,null,null,null,null,null,null,null,null,null,null,null,null,null,null,null,null,null,null,null,null,null,null,null,null,null,null,null,null,null,null,null,null,null,null,null,null,null,null,null,null,null,null,null,null,null,null,null,null,null,null,null,null,null,null,null,null,null,null,null,null,null,null,null,null,null,null,null,null,null,null,null,null,null,null,null,null,null,null,null,null,null,null,null,null,null,null,null,null,null,null,null,null,null,null,null,null,null,null,null,null,null,null,null,null,null,null,null,null,null,null,null,null,null,null,null,null,null,null,null,12,11,0,13,1,6,"","",""]
[null,null,null,null,null,null,null,null,null,null,null,null,null,null,null,null,null,null,null,null,null,null,null,null,null,null,null,null,null,null,null,null,null,null,null,null,null,null,null,null,null,null,null,null,null,null,null,null,null,null,null,null,null,null,null,null,null,null,null,null,null,null,null,null,null,null,null,null,null,null,null,null,null,null,null,null,null,null,null,null,null,null,null,null,null,null,null,null,null,null,null,null,null,null,null,null,null,null,null,null,null,null,null,null,null,null,null,null,null,null,null,null,null,null,null,null,null,null,null,null,null,null,null,null,null,null,null,null,null,null,null,null,null,null,null,null,null,null,null,null,null,null,null,null,null,null,null,null,null,null,null,null,null,null,null,null,null,null,null,null,null,null,null,null,null,null,null,null,null,null,null,null,null,null,null,null,null,null,null,null,null,null,null,null,null,null,null,null,null,null,13,2,{"$f":"IF(AND($GI$13=GI75,$GJ$13=GJ75),1,0)","v":0},13,3,31,"","",""]
[null,null,null,null,null,null,null,null,null,null,null,null,null,null,null,null,null,null,null,null,null,null,null,null,null,null,null,null,null,null,null,null,null,null,null,null,null,null,null,null,null,null,null,null,null,null,null,null,null,null,null,null,null,null,null,null,null,null,null,null,null,null,null,null,null,null,null,null,null,null,null,null,null,null,null,null,null,null,null,null,null,null,null,null,null,null,null,null,null,null,null,null,null,null,null,null,null,null,null,null,null,null,null,null,null,null,null,null,null,null,null,null,null,null,null,null,null,null,null,null,null,null,null,null,null,null,null,null,null,null,null,null,null,null,null,null,null,null,null,null,null,null,null,null,null,null,null,null,null,null,null,null,null,null,null,null,null,null,null,null,null,null,null,null,null,null,null,null,null,null,null,null,null,null,null,null,null,null,null,null,null,null,null,null,null,null,null,null,null,null,null,null,null,null,null,null,{"$f":"SUM(GO56:GO75)","v":0},{"$f":"SUM(GP56:GP75)","v":0},0,"納期限","令和",{"$f":"IF(BZ5>0,BZ5,GO76)","v":0},"年",{"$f":"IF(CF5>0,CF5,GP76)","v":0},"月",{"$f":"IF(CL5>0,CL5,GQ76)","v":0},"日"]

{"sheet":"宿泊税納入書","index":2,"n_rows":36,"n_cols":285,"rows_kept":36,"cut":false,"hidden":false,"merged":[[21,7,22,19],[21,20,22,29],[27,163,27,168],[29,1,29,29],[29,30,29,35],[27,195,28,201],[28,84,28,89],[28,90,28,95],[28,105,28,126],[27,98,28,104],[27,54,27,59],[27,60,27,65],[27,66,27,71],[27,72,27,77],[27,78,27,83],[27,84,27,89],[27,169,27,174],[27,175,27,180],[27,8,27,29],[27,30,27,35],[27,36,27,41],[27,42,27,47],[27,48,27,53],[29,163,29,168],[29,169,29,174],[29,175,29,180],[27,90,27,95],[29,54,29,59],[29,60,29,65],[29,66,29,71],[29,72,29,77],[29,78,29,83],[28,145,28,150],[28,151,28,156],[28,157,28,162],[27,105,27,126],[27,127,27,132],[27,133,27,138],[27,139,27,144],[27,145,27,150],[27,151,27,156],[27,157,27,162],[29,284,29,289],[29,254,29,259],[29,260,29,265],[29,266,29,271],[29,272,29,277],[30,37,30,39],[30,40,30,46],[30,47,30,49],[30,50,30,56],[30,57,30,59],[29,248,29,253],[30,216,30,223],[30,251,30,253],[30,98,30,118],[30,119,30,126],[30,127,30,133],[30,134,30,136],[30,137,30,143],[30,60,34,65],[30,66,34,95],[30,157,34,162],[30,163,34,192],[29,133,29,138],[29,139,29,144],[28,284,28,289],[28,230,28,235],[28,236,28,241],[28,242,28,247],[28,248,28,253],[28,254,28,259],[28,260,28,265],[28,66,28,71],[28,72,28,77],[28,78,28,83],[28,127,28,132],[28,133,28,138],[28,139,28,144],[28,169,28,174],[28,175,28,180],[28,181,28,186],[28,163,28,168],[28,187,28,192],[28,202,28,223],[28,224,28,229],[29,36,29,41],[29,42,29,47],[29,48,29,53],[28,266,28,271],[28,272,28,277],[28,278,28,283],[29,145,29,150],[29,84,29,89],[29,90,29,95],[29,98,29,126],[29,127,29,132],[29,278,29,283],[29,187,29,192],[29,195,29,223],[29,224,29,229],[29,230,29,235],[29,236,29,241],[29,242,29,247],[29,151,29,156],[29,157,29,162],[29,181,29,186],[26,42,26,47],[26,48,26,53],[26,54,26,59],[27,272,27,277],[27,278,27,283],[27,284,27,289],[28,8,28,29],[28,30,28,35],[28,36,28,41],[28,42,28,47],[28,48,28,53],[28,54,28,59],[28,60,28,65],[27,236,27,241],[27,242,27,247],[27,248,27,253],[27,254,27,259],[27,260,27,265],[27,266,27,271],[27,181,27,186],[27,187,27,192],[27,202,27,223],[27,224,27,229],[27,230,27,235],[26,157,26,162],[26,163,26,168],[26,169,26,174],[26,175,26,180],[26,181,26,186],[26,187,26,192],[27,1,28,7],[26,254,26,259],[26,260,26,265],[26,98,26,126],[26,127,26,132],[26,133,26,138],[26,139,26,144],[26,145,26,150],[26,151,26,156],[26,60,26,65],[26,66,26,71],[26,72,26,77],[26,78,26,83],[26,84,26,89],[26,90,26,95],[26,1,26,29],[26,30,26,35],[26,36,26,41],[19,265,19,289],[20,265,21,270],[20,271,21,289],[24,271,25,289],[23,201,24,213],[23,214,24,223],[23,224,24,229],[26,284,26,289],[26,195,26,223],[26,224,26,229],[26,230,26,235],[26,236,26,241],[26,242,26,247],[26,248,26,253],[26,266,26,271],[26,272,26,277],[26,278,26,283],[19,195,19,264],[23,230,24,239],[23,240,24,259],[22,174,23,192],[23,133,24,142],[20,174,21,192],[21,117,22,126],[21,127,22,132],[21,133,22,142],[23,143,24,162],[22,265,23,270],[22,271,23,289],[21,201,22,213],[21,214,22,223],[21,224,22,229],[21,230,22,239],[21,240,22,259],[24,265,25,270],[23,117,24,126],[23,127,24,132],[21,143,22,162],[24,168,25,173],[24,174,25,192],[17,41,18,46],[17,47,18,52],[21,30,22,35],[21,36,22,45],[21,46,22,65],[21,104,22,116],[20,71,21,76],[20,77,21,95],[20,168,21,173],[22,168,23,173],[19,1,19,70],[19,71,19,95],[23,7,24,19],[23,20,24,29],[23,30,24,35],[23,36,24,45],[23,46,24,65],[23,104,24,116],[24,71,25,76],[24,77,25,95],[22,71,23,76],[22,77,23,95],[19,98,19,167],[19,168,19,192],[13,283,13,287],[15,28,16,87],[15,125,16,184],[15,222,16,281],[12,28,14,87],[12,125,14,184],[12,222,14,281],[13,89,13,93],[13,186,13,190],[12,100,14,122],[15,100,16,122],[12,197,14,219],[15,197,16,219],[2,1,2,34],[4,1,4,4],[4,98,4,101],[4,102,4,105],[4,106,4,109],[4,110,4,113],[4,114,4,117],[17,234,18,239],[17,240,18,245],[12,3,14,25],[15,3,16,25],[17,3,18,25],[9,3,11,25],[9,100,11,122],[9,197,11,219],[17,222,18,227],[17,228,18,233],[8,3,8,40],[8,100,8,136],[8,197,8,235],[17,100,18,122],[17,197,18,219],[17,29,18,34],[17,35,18,40],[1,204,1,236],[3,229,4,282],[2,229,2,282],[2,35,2,88],[3,35,4,88],[2,132,2,185],[3,132,4,185],[6,243,6,289],[2,98,2,131],[2,195,2,228],[4,219,4,228],[3,122,3,131],[3,195,3,218],[30,254,34,259],[30,260,34,289],[31,98,32,156],[9,28,11,87],[9,125,11,184],[9,222,11,281],[3,1,3,24],[3,25,3,34],[4,25,4,34],[3,98,3,121],[3,219,3,228],[4,195,4,198],[4,199,4,202],[4,203,4,206],[4,207,4,210],[4,211,4,214],[4,215,4,218],[17,53,18,58],[17,125,18,130],[17,131,18,136],[17,137,18,142],[17,143,18,148],[17,149,18,154],[17,246,18,251],[35,1,35,72],[35,98,35,192],[31,1,31,21],[31,22,31,59],[31,195,34,253],[32,1,32,21],[32,22,32,59],[30,224,30,230],[30,231,30,233],[30,234,30,240],[30,241,30,243],[30,244,30,250],[30,144,30,146],[30,147,30,153],[30,154,30,156],[30,195,30,215],[35,195,35,253],[33,1,33,21],[33,22,33,59],[34,1,34,59],[34,98,34,156],[30,1,30,21],[30,22,30,29],[30,30,30,36],[20,459,21,464],[20,465,21,483],[24,459,25,464],[24,465,25,483],[17,391,18,413],[17,416,18,475],[4,17,4,20],[4,21,4,24],[7,1,7,48],[7,49,7,95],[7,98,7,145],[7,146,7,192],[7,195,7,242],[7,243,7,289],[6,1,6,48],[6,49,6,95],[6,98,6,145],[6,146,6,192],[6,195,6,242],[4,118,4,121],[4,122,4,131],[4,5,4,8],[4,9,4,12],[4,13,4,16]]}
["第４号様式"]
[]
[null,"北海道函館市",null,null,null,null,null,null,null,null,null,null,null,null,null,null,null,null,null,null,null,null,null,null,null,null,null,null,null,null,null,null,null,null,null,"宿泊税",null,null,null,null,null,null,null,null,null,null,null,null,null,null,null,null,null,null,null,null,null,null,null,null,null,null,null,null,null,null,null,null,null,null,null,null,null,null,null,null,null,null,null,null,null,null,null,null,null,null,null,null,null,null,null,null,null,null,null,null,null,null,"北海道函館市",null,null,null,null,null,null,null,null,null,null,null,null,null,null,null,null,null,null,null,null,null,null,null,null,null,null,null,null,null,null,null,null,null,"宿泊税",null,null,null,null,null,null,null,null,null,null,null,null,null,null,null,null,null,null,null,null,null,null,null,null,null,null,null,null,null,null,null,null,null,null,null,null,null,null,null,null,null,null,null,null,null,null,null,null,null,null,null,null,null,null,null,null,null,null,null,null,null,null,"北海道函館市",null,null,null,null,null,null,null,null,null,null,null,null,null,null,null,null,null,null,null,null,null,null,null,null,null,null,null,null,null,null,null,null,null,"宿泊税"]
[null,"市区町村コード",null,null,null,null,null,null,null,null,null,null,null,null,null,null,null,null,null,null,null,null,null,null,null,"科目\nコード",null,null,null,null,null,null,null,null,null,"納入済通知書",null,null,null,null,null,null,null,null,null,null,null,null,null,null,null,null,null,null,null,null,null,null,null,null,null,null,null,null,null,null,null,null,null,null,null,null,null,null,null,null,null,null,null,null,null,null,null,null,null,null,null,null,null,null,null,null,null,null,null,null,null,null,"市区町村コード",null,null,null,null,null,null,null,null,null,null,null,null,null,null,null,null,null,null,null,null,null,null,null,"科目\nコード",null,null,null,null,null,null,null,null,null,"納入書",null,null,null,null,null,null,null,null,null,null,null,null,null,null,null,null,null,null,null,null,null,null,null,null,null,null,null,null,null,null,null,null,null,null,null,null,null,null,null,null,null,null,null,null,null,null,null,null,null,null,null,null,null,null,null,null,null,null,null,null,null,null,"市区町村コード",null,null,null,null,null,null,null,null,null,null,null,null,null,null,null,null,null,null,null,null,null,null,null,"科目\nコード",null,null,null,null,null,null,null,null,null,"領収証書"]
[null,0,null,null,null,1,null,null,null,2,null,null,null,0,null,null,null,2,null,null,null,5,null,null,null,34,null,null,null,null,null,null,null,null,null,null,null,null,null,null,null,null,null,null,null,null,null,null,null,null,null,null,null,null,null,null,null,null,null,null,null,null,null,null,null,null,null,null,null,null,null,null,null,null,null,null,null,null,null,null,null,null,null,null,null,null,null,null,null,null,null,null,null,null,null,null,null,null,0,null,null,null,1,null,null,null,2,null,null,null,0,null,null,null,2,null,null,null,5,null,null,null,34,null,null,null,null,null,null,null,null,null,null,null,null,null,null,null,null,null,null,null,null,null,null,null,null,null,null,null,null,null,null,null,null,null,null,null,null,null,null,null,null,null,null,null,null,null,null,null,null,null,null,null,null,null,null,null,null,null,null,null,null,null,null,null,null,null,null,null,null,null,null,null,null,0,null,null,null,1,null,null,null,2,null,null,null,0,null,null,null,2,null,null,null,5,null,null,null,34]
[]
[null,"口　座　番　号",null,null,null,null,null,null,null,null,null,null,null,null,null,null,null,null,null,null,null,null,null,null,null,null,null,null,null,null,null,null,null,null,null,null,null,null,null,null,null,null,null,null,null,null,null,null,null,"加　入　者　名",null,null,null,null,null,null,null,null,null,null,null,null,null,null,null,null,null,null,null,null,null,null,null,null,null,null,null,null,null,null,null,null,null,null,null,null,null,null,null,null,null,null,null,null,null,null,null,null,"口　座　番　号",null,null,null,null,null,null,null,null,null,null,null,null,null,null,null,null,null,null,null,null,null,null,null,null,null,null,null,null,null,null,null,null,null,null,null,null,null,null,null,null,null,null,null,null,null,null,null,"加　入　者　名",null,null,null,null,null,null,null,null,null,null,null,null,null,null,null,null,null,null,null,null,null,null,null,null,null,null,null,null,null,null,null,null,null,null,null,null,null,null,null,null,null,null,null,null,null,null,null,null,"口　座　番　号",null,null,null,null,null,null,null,null,null,null,null,null,null,null,null,null,null,null,null,null,null,null,null,null,null,null,null,null,null,null,null,null,null,null,null,null,null,null,null,null,null,null,null,null,null,null,null,"加　入　者　名"]
[null,"02660-8-960015",null,null,null,null,null,null,null,null,null,null,null,null,null,null,null,null,null,null,null,null,null,null,null,null,null,null,null,null,null,null,null,null,null,null,null,null,null,null,null,null,null,null,null,null,null,null,null,"函館市会計管理者",null,null,null,null,null,null,null,null,null,null,null,null,null,null,null,null,null,null,null,null,null,null,null,null,null,null,null,null,null,null,null,null,null,null,null,null,null,null,null,null,null,null,null,null,null,null,null,null,{"$f":"B8","v":"02660-8-960015"},null,null,null,null,null,null,null,null,null,null,null,null,null,null,null,null,null,null,null,null,null,null,null,null,null,null,null,null,null,null,null,null,null,null,null,null,null,null,null,null,null,null,null,null,null,null,null,{"$f":"AX8","v":"函館市会計管理者"},null,null,null,null,null,null,null,null,null,null,null,null,null,null,null,null,null,null,null,null,null,null,null,null,null,null,null,null,null,null,null,null,null,null,null,null,null,null,null,null,null,null,null,null,null,null,null,null,{"$f":"B8","v":"02660-8-960015"},null,null,null,null,null,null,null,null,null,null,null,null,null,null,null,null,null,null,null,null,null,null,null,null,null,null,null,null,null,null,null,null,null,null,null,null,null,null,null,null,null,null,null,null,null,null,null,{"$f":"AX8","v":"函館市会計管理者"}]
[null,null,null,"特別徴収義務者",null,null,null,null,null,null,null,null,null,null,null,null,null,null,null,null,null,null,null,null,null,null,null,null,null,null,null,null,null,null,null,null,null,null,null,null,null,null,null,null,null,null,null,null,null,null,null,null,null,null,null,null,null,null,null,null,null,null,null,null,null,null,null,null,null,null,null,null,null,null,null,null,null,null,null,null,null,null,null,null,null,null,null,null,null,null,null,null,null,null,null,null,null,null,null,null,"特別徴収義務者",null,null,null,null,null,null,null,null,null,null,null,null,null,null,null,null,null,null,null,null,null,null,null,null,null,null,null,null,null,null,null,null,null,null,null,null,null,null,null,null,null,null,null,null,null,null,null,null,null,null,null,null,null,null,null,null,null,null,null,null,null,null,null,null,null,null,null,null,null,null,null,null,null,null,null,null,null,null,null,null,null,null,null,null,null,null,null,null,null,null,null,null,null,null,null,null,"特別徴収義務者"]
[null,null,null,"住　　所\n(所 在 地)",null,null,null,null,null,null,null,null,null,null,null,null,null,null,null,null,null,null,null,null,null,null,null,null,{"$f":"+IF(宿泊税月計表!S2=0,\"\",宿泊税月計表!S2)","v":""},null,null,null,null,null,null,null,null,null,null,null,null,null,null,null,null,null,null,null,null,null,null,null,null,null,null,null,null,null,null,null,null,null,null,null,null,null,null,null,null,null,null,null,null,null,null,null,null,null,null,null,null,null,null,null,null,null,null,null,null,null,null,null,null,null,null,null,null,null,null,null,"住　　所\n(所 在 地)",null,null,null,null,null,null,null,null,null,null,null,null,null,null,null,null,null,null,null,null,null,null,null,null,{"$f":"IF(AC10=\"\",\"\",AC10)","v":""},null,null,null,null,null,null,null,null,null,null,null,null,null,null,null,null,null,null,null,null,null,null,null,null,null,null,null,null,null,null,null,null,null,null,null,null,null,null,null,null,null,null,null,null,null,null,null,null,null,null,null,null,null,null,null,null,null,null,null,null,null,null,null,null,null,null,null,null,null,null,null,"住　　所\n(所 在 地)",null,null,null,null,null,null,null,null,null,null,null,null,null,null,null,null,null,null,null,null,null,null,null,null,{"$f":"IF(AC10=\"\",\"\",AC10)","v":""}]
[]
[]
[null,null,null,"氏　　名\n(名　　称)",null,null,null,null,null,null,null,null,null,null,null,null,null,null,null,null,null,null,null,null,null,null,null,null,{"$f":"+IF(宿泊税月計表!S3=0,\"\",宿泊税月計表!S3)","v":""},null,null,null,null,null,null,null,null,null,null,null,null,null,null,null,null,null,null,null,null,null,null,null,null,null,null,null,null,null,null,null,null,null,null,null,null,null,null,null,null,null,null,null,null,null,null,null,null,null,null,null,null,null,null,null,null,null,null,null,null,null,null,null,null,null,null,null,null,null,null,null,"氏　　名\n(名　　称)",null,null,null,null,null,null,null,null,null,null,null,null,null,null,null,null,null,null,null,null,null,null,null,null,{"$f":"IF(AC13=\"\",\"\",AC13)","v":""},null,null,null,null,null,null,null,null,null,null,null,null,null,null,null,null,null,null,null,null,null,null,null,null,null,null,null,null,null,null,null,null,null,null,null,null,null,null,null,null,null,null,null,null,null,null,null,null,null,null,null,null,null,null,null,null,null,null,null,null,null,null,null,null,null,null,null,null,null,null,null,"氏　　名\n(名　　称)",null,null,null,null,null,null,null,null,null,null,null,null,null,null,null,null,null,null,null,null,null,null,null,null,{"$f":"IF(AC13=\"\",\"\",AC13)","v":""}]
[null,null,null,null,null,null,null,null,null,null,null,null,null,null,null,null,null,null,null,null,null,null,null,null,null,null,null,null,null,null,null,null,null,null,null,null,null,null,null,null,null,null,null,null,null,null,null,null,null,null,null,null,null,null,null,null,null,null,null,null,null,null,null,null,null,null,null,null,null,null,null,null,null,null,null,null,null,null,null,null,null,null,null,null,null,null,null,null,null,"様",null,null,null,null,null,null,null,null,null,null,null,null,null,null,null,null,null,null,null,null,null,null,null,null,null,null,null,null,null,null,null,null,null,null,null,null,null,null,null,null,null,null,null,null,null,null,null,null,null,null,null,null,null,null,null,null,null,null,null,null,null,null,null,null,null,null,null,null,null,null,null,null,null,null,null,null,null,null,null,null,null,null,null,null,null,null,null,null,null,null,null,null,null,null,null,null,"様",null,null,null,null,null,null,null,null,null,null,null,null,null,null,null,null,null,null,null,null,null,null,null,null,null,null,null,null,null,null,null,null,null,null,null,null,null,null,null,null,null,null,null,null,null,null,null,null,null,null,null,null,null,null,null,null,null,null,null,null,null,null,null,null,null,null,null,null,null,null,null,null,null,null,null,null,null,null,null,null,null,null,null,null,null,null,null,null,null,null,null,null,null,null,null,null,"様"]
[]
[null,null,null,"宿泊施設名",null,null,null,null,null,null,null,null,null,null,null,null,null,null,null,null,null,null,null,null,null,null,null,null,{"$f":"+IF(宿泊税月計表!S6=0,\"\",宿泊税月計表!S6)","v":""},null,null,null,null,null,null,null,null,null,null,null,null,null,null,null,null,null,null,null,null,null,null,null,null,null,null,null,null,null,null,null,null,null,null,null,null,null,null,null,null,null,null,null,null,null,null,null,null,null,null,null,null,null,null,null,null,null,null,null,null,null,null,null,null,null,null,null,null,null,null,null,"宿泊施設名",null,null,null,null,null,null,null,null,null,null,null,null,null,null,null,null,null,null,null,null,null,null,null,null,{"$f":"IF(AC16=\"\",\"\",AC16)","v":""},null,null,null,null,null,null,null,null,null,null,null,null,null,null,null,null,null,null,null,null,null,null,null,null,null,null,null,null,null,null,null,null,null,null,null,null,null,null,null,null,null,null,null,null,null,null,null,null,null,null,null,null,null,null,null,null,null,null,null,null,null,null,null,null,null,null,null,null,null,null,null,"宿泊施設名",null,null,null,null,null,null,null,null,null,null,null,null,null,null,null,null,null,null,null,null,null,null,null,null,{"$f":"IF(AC16=\"\",\"\",AC16)","v":""}]
[]
[null,null,null,"指定番号 ",null,null,null,null,null,null,null,null,null,null,null,null,null,null,null,null,null,null,null,null,null,null,null,null,null,{"$f":"+IF(宿泊税月計表!S7=0,\"\",宿泊税月計表!S7)","v":""},null,null,null,null,null,{"$f":"+IF(宿泊税月計表!V7=0,\"\",宿泊税月計表!V7)","v":""},null,null,null,null,null,{"$f":"+IF(宿泊税月計表!Y7=0,\"\",宿泊税月計表!Y7)","v":""},null,null,null,null,null,{"$f":"+IF(宿泊税月計表!AB7=0,\"\",宿泊税月計表!AB7)","v":""},null,null,null,null,null,{"$f":"+IF(宿泊税月計表!AE7=0,\"\",宿泊税月計表!AE7)","v":""},null,null,null,null,null,null,null,null,null,null,null,null,null,null,null,null,null,null,null,null,null,null,null,null,null,null,null,null,null,null,null,null,null,null,null,null,null,null,null,null,null,null,null,null,null,null,"指定番号 ",null,null,null,null,null,null,null,null,null,null,null,null,null,null,null,null,null,null,null,null,null,null,null,null,{"$f":"+AD18","v":""},null,null,null,null,null,{"$f":"+AJ18","v":""},null,null,null,null,null,{"$f":"+AP18","v":""},null,null,null,null,null,{"$f":"+AV18","v":""},null,null,null,null,null,{"$f":"+BB18","v":""},null,null,null,null,null,null,null,null,null,null,null,null,null,null,null,null,null,null,null,null,null,null,null,null,null,null,null,null,null,null,null,null,null,null,null,null,null,null,null,null,null,null,null,null,null,null,null,"指定番号 ",null,null,null,null,null,null,null,null,null,null,null,null,null,null,null,null,null,null,null,null,null,null,null,null,{"$f":"+AD18","v":""},null,null,null,null,null,{"$f":"+AJ18","v":""},null,null,null,null,null,{"$f":"+AP18","v":""},null,null,null,null,null,{"$f":"+AV18","v":""},null,null,null,null,null,{"$f":"+BB18","v":""}]
[]
[null,"徴　収　期　間",null,null,null,null,null,null,null,null,null,null,null,null,null,null,null,null,null,null,null,null,null,null,null,null,null,null,null,null,null,null,null,null,null,null,null,null,null,null,null,null,null,null,null,null,null,null,null,null,null,null,null,null,null,null,null,null,null,null,null,null,null,null,null,null,null,null,null,null,null,"区　分",null,null,null,null,null,null,null,null,null,null,null,null,null,null,null,null,null,null,null,null,null,null,null,null,null,null,"徴　収　期　間",null,null,null,null,null,null,null,null,null,null,null,null,null,null,null,null,null,null,null,null,null,null,null,null,null,null,null,null,null,null,null,null,null,null,null,null,null,null,null,null,null,null,null,null,null,null,null,null,null,null,null,null,null,null,null,null,null,null,null,null,null,null,null,null,null,null,null,null,null,"区　分",null,null,null,null,null,null,null,null,null,null,null,null,null,null,null,null,null,null,null,null,null,null,null,null,null,null,"徴　収　期　間",null,null,null,null,null,null,null,null,null,null,null,null,null,null,null,null,null,null,null,null,null,null,null,null,null,null,null,null,null,null,null,null,null,null,null,null,null,null,null,null,null,null,null,null,null,null,null,null,null,null,null,null,null,null,null,null,null,null,null,null,null,null,null,null,null,null,null,null,null,"区　分"]
[null,"　　　　年　　月分\nから　　　　年　　月分まで",null,null,null,null,null,null,null,null,null,null,null,null,null,null,null,null,null,null,null,null,null,null,null,null,null,null,null,null,null,null,null,null,null,null,null,null,null,null,null,null,null,null,null,null,null,null,null,null,null,null,null,null,null,null,null,null,null,null,null,null,null,null,null,null,null,null,null,null,null,{"$f":"IF(宿泊税月計表!$BW$4=\"01 申告\",\"〇\",\"\")","v":"〇"},null,null,null,null,null,"01 申告",null,null,null,null,null,null,null,null,null,null,null,null,null,null,null,null,null,null,null,null,"　　　　年　　月分\nから　　　　年　　月分まで",null,null,null,null,null,null,null,null,null,null,null,null,null,null,null,null,null,null,null,null,null,null,null,null,null,null,null,null,null,null,null,null,null,null,null,null,null,null,null,null,null,null,null,null,null,null,null,null,null,null,null,null,null,null,null,null,null,null,null,null,null,null,null,null,null,null,null,null,null,{"$f":"IF(宿泊税月計表!$BW$4=\"01 申告\",\"〇\",\"\")","v":"〇"},null,null,null,null,null,"01 申告",null,null,null,null,null,null,null,null,null,null,null,null,null,null,null,null,null,null,null,null,"　　　　年　　月分\nから　　　　年　　月分まで",null,null,null,null,null,null,null,null,null,null,null,null,null,null,null,null,null,null,null,null,null,null,null,null,null,null,null,null,null,null,null,null,null,null,null,null,null,null,null,null,null,null,null,null,null,null,null,null,null,null,null,null,null,null,null,null,null,null,null,null,null,null,null,null,null,null,null,null,null,{"$f":"IF(宿泊税月計表!$BW$4=\"01 申告\",\"〇\",\"\")","v":"〇"},null,null,null,null,null,"01 申告"]
[null,null,null,null,null,null,null,{"$f":"+宿泊税月計表!CC3","v":"令和"},null,null,null,null,null,null,null,null,null,null,null,null,{"$f":"+IF(宿泊税月計表!CF3=0,\"\",宿泊税月計表!CF3)","v":""},null,null,null,null,null,null,null,null,null,"年",null,null,null,null,null,{"$f":"+IF(宿泊税月計表!CL3=0,\"\",宿泊税月計表!CL3)","v":""},null,null,null,null,null,null,null,null,null,{"$f":"+IF(OR(宿泊税月計表!BW3=\"\",宿泊税月計表!BW3=\"一か月分\"),\"月分\",\"月分から\")","v":"月分から"},null,null,null,null,null,null,null,null,null,null,null,null,null,null,null,null,null,null,null,null,null,null,null,null,null,null,null,null,null,null,null,null,null,null,null,null,null,null,null,null,null,null,null,null,null,null,null,null,null,null,null,null,null,null,null,null,null,{"$f":"+H22","v":"令和"},null,null,null,null,null,null,null,null,null,null,null,null,{"$f":"IF(U22=\"\",\"\",U22)","v":""},null,null,null,null,null,null,null,null,null,"年",null,null,null,null,null,{"$f":"IF(AK22=\"\",\"\",AK22)","v":""},null,null,null,null,null,null,null,null,null,{"$f":"+AU22","v":"月分から"},null,null,null,null,null,null,null,null,null,null,null,null,null,null,null,null,null,null,null,null,null,null,null,null,null,null,null,null,null,null,null,null,null,null,null,null,null,null,null,null,null,null,null,null,null,null,null,null,null,null,null,null,null,null,null,null,null,{"$f":"+H22","v":"令和"},null,null,null,null,null,null,null,null,null,null,null,null,{"$f":"IF(U22=\"\",\"\",U22)","v":""},null,null,null,null,null,null,null,null,null,"年",null,null,null,null,null,{"$f":"IF(AK22=\"\",\"\",AK22)","v":""},null,null,null,null,null,null,null,null,null,{"$f":"+EN22","v":"月分から"}]
[null,null,null,null,null,null,null,null,null,null,null,null,null,null,null,null,null,null,null,null,null,null,null,null,null,null,null,null,null,null,null,null,null,null,null,null,null,null,null,null,null,null,null,null,null,null,null,null,null,null,null,null,null,null,null,null,null,null,null,null,null,null,null,null,null,null,null,null,null,null,null,{"$f":"IF(宿泊税月計表!$BW$4=\"02 更正\",\"〇\",\"\")","v":""},null,null,null,null,null,"02 更正",null,null,null,null,null,null,null,null,null,null,null,null,null,null,null,null,null,null,null,null,null,null,null,null,null,null,null,null,null,null,null,null,null,null,null,null,null,null,null,null,null,null,null,null,null,null,null,null,null,null,null,null,null,null,null,null,null,null,null,null,null,null,null,null,null,null,null,null,null,null,null,null,null,null,null,null,null,null,null,null,null,null,null,null,null,null,null,null,null,null,{"$f":"IF(宿泊税月計表!$BW$4=\"02 更正\",\"〇\",\"\")","v":""},null,null,null,null,null,"02 更正",null,null,null,null,null,null,null,null,null,null,null,null,null,null,null,null,null,null,null,null,null,null,null,null,null,null,null,null,null,null,null,null,null,null,null,null,null,null,null,null,null,null,null,null,null,null,null,null,null,null,null,null,null,null,null,null,null,null,null,null,null,null,null,null,null,null,null,null,null,null,null,null,null,null,null,null,null,null,null,null,null,null,null,null,null,null,null,null,null,null,{"$f":"IF(宿泊税月計表!$BW$4=\"02 更正\",\"〇\",\"\")","v":""},null,null,null,null,null,"02 更正"]
[null,null,null,null,"から",null,null,{"$f":"+IF(OR(宿泊税月計表!$BW$3=\"二か月分\",宿泊税月計表!$BW$3=\"三か月分\"),\"令和\",\"\")","v":"令和"},null,null,null,null,null,null,null,null,null,null,null,null,{"$f":"+IF(OR(宿泊税月計表!$BW$3=\"二か月分\",宿泊税月計表!$BW$3=\"三か月分\"),宿泊税月計表!$CX3,\"\")","v":""},null,null,null,null,null,null,null,null,null,{"$f":"+IF(OR(宿泊税月計表!$BW$3=\"二か月分\",宿泊税月計表!$BW$3=\"三か月分\"),\"年\",\"\")","v":"年"},null,null,null,null,null,{"$f":"+IF(OR(宿泊税月計表!$BW$3=\"二か月分\",宿泊税月計表!$BW$3=\"三か月分\"),宿泊税月計表!$DD3,\"\")","v":""},null,null,null,null,null,null,null,null,null,{"$f":"+IF(OR(宿泊税月計表!$BW$3=\"二か月分\",宿泊税月計表!$BW$3=\"三か月分\"),\"月分まで\",\"\")","v":"月分まで"},null,null,null,null,null,null,null,null,null,null,null,null,null,null,null,null,null,null,null,null,null,null,null,null,null,null,null,null,null,null,null,null,null,null,null,null,null,null,null,null,null,null,null,null,null,null,null,null,null,null,null,null,null,null,"から",null,null,{"$f":"+IF(OR(宿泊税月計表!$BW$3=\"二か月分\",宿泊税月計表!$BW$3=\"三か月分\"),\"令和\",\"\")","v":"令和"},null,null,null,null,null,null,null,null,null,null,null,null,{"$f":"+IF(OR(宿泊税月計表!$BW$3=\"二か月分\",宿泊税月計表!$BW$3=\"三か月分\"),宿泊税月計表!$CX3,\"\")","v":""},null,null,null,null,null,null,null,null,null,{"$f":"+IF(OR(宿泊税月計表!$BW$3=\"二か月分\",宿泊税月計表!$BW$3=\"三か月分\"),\"年\",\"\")","v":"年"},null,null,null,null,null,{"$f":"+IF(OR(宿泊税月計表!$BW$3=\"二か月分\",宿泊税月計表!$BW$3=\"三か月分\"),宿泊税月計表!$DD3,\"\")","v":""},null,null,null,null,null,null,null,null,null,{"$f":"+IF(OR(宿泊税月計表!$BW$3=\"二か月分\",宿泊税月計表!$BW$3=\"三か月分\"),\"月分まで\",\"\")","v":"月分まで"},null,null,null,null,null,null,null,null,null,null,null,null,null,null,null,null,null,null,null,null,null,null,null,null,null,null,null,null,null,null,null,null,null,null,null,null,null,null,null,null,null,null,null,null,null,null,null,null,null,null,null,null,null,null,"から",null,null,{"$f":"+IF(OR(宿泊税月計表!$BW$3=\"二か月分\",宿泊税月計表!$BW$3=\"三か月分\"),\"令和\",\"\")","v":"令和"},null,null,null,null,null,null,null,null,null,null,null,null,{"$f":"+IF(OR(宿泊税月計表!$BW$3=\"二か月分\",宿泊税月計表!$BW$3=\"三か月分\"),宿泊税月計表!$CX3,\"\")","v":""},null,null,null,null,null,null,null,null,null,{"$f":"+IF(OR(宿泊税月計表!$BW$3=\"二か月分\",宿泊税月計表!$BW$3=\"三か月分\"),\"年\",\"\")","v":"年"},null,null,null,null,null,{"$f":"+IF(OR(宿泊税月計表!$BW$3=\"二か月分\",宿泊税月計表!$BW$3=\"三か月分\"),宿泊税月計表!$DD3,\"\")","v":""},null,null,null,null,null,null,null,null,null,{"$f":"+IF(OR(宿泊税月計表!$BW$3=\"二か月分\",宿泊税月計表!$BW$3=\"三か月分\"),\"月分まで\",\"\")","v":"月分まで"}]
[null,null,null,null,null,null,null,null,null,null,null,null,null,null,null,null,null,null,null,null,null,null,null,null,null,null,null,null,null,null,null,null,null,null,null,null,null,null,null,null,null,null,null,null,null,null,null,null,null,null,null,null,null,null,null,null,null,null,null,null,null,null,null,null,null,null,null,null,null,null,null,{"$f":"IF(宿泊税月計表!$BW$4=\"03 決定\",\"〇\",\"\")","v":""},null,null,null,null,null,"03 決定",null,null,null,null,null,null,null,null,null,null,null,null,null,null,null,null,null,null,null,null,null,null,null,null,null,null,null,null,null,null,null,null,null,null,null,null,null,null,null,null,null,null,null,null,null,null,null,null,null,null,null,null,null,null,null,null,null,null,null,null,null,null,null,null,null,null,null,null,null,null,null,null,null,null,null,null,null,null,null,null,null,null,null,null,null,null,null,null,null,null,{"$f":"IF(宿泊税月計表!$BW$4=\"03 決定\",\"〇\",\"\")","v":""},null,null,null,null,null,"03 決定",null,null,null,null,null,null,null,null,null,null,null,null,null,null,null,null,null,null,null,null,null,null,null,null,null,null,null,null,null,null,null,null,null,null,null,null,null,null,null,null,null,null,null,null,null,null,null,null,null,null,null,null,null,null,null,null,null,null,null,null,null,null,null,null,null,null,null,null,null,null,null,null,null,null,null,null,null,null,null,null,null,null,null,null,null,null,null,null,null,null,{"$f":"IF(宿泊税月計表!$BW$4=\"03 決定\",\"〇\",\"\")","v":""},null,null,null,null,null,"03 決定"]
[]
[null,null,null,null,null,null,null,null,null,null,null,null,null,null,null,null,null,null,null,null,null,null,null,null,null,null,null,null,null,null,"百",null,null,null,null,null,"十",null,null,null,null,null,"億",null,null,null,null,null,"千",null,null,null,null,null,"百",null,null,null,null,null,"十",null,null,null,null,null,"万",null,null,null,null,null,"千",null,null,null,null,null,"百",null,null,null,null,null,"十",null,null,null,null,null,"円",null,null,null,null,null,null,null,null,null,null,null,null,null,null,null,null,null,null,null,null,null,null,null,null,null,null,null,null,null,null,null,null,null,null,null,null,"百",null,null,null,null,null,"十",null,null,null,null,null,"億",null,null,null,null,null,"千",null,null,null,null,null,"百",null,null,null,null,null,"十",null,null,null,null,null,"万",null,null,null,null,null,"千",null,null,null,null,null,"百",null,null,null,null,null,"十",null,null,null,null,null,"円",null,null,null,null,null,null,null,null,null,null,null,null,null,null,null,null,null,null,null,null,null,null,null,null,null,null,null,null,null,null,null,null,null,null,null,null,"百",null,null,null,null,null,"十",null,null,null,null,null,"億",null,null,null,null,null,"千",null,null,null,null,null,"百",null,null,null,null,null,"十",null,null,null,null,null,"万",null,null,null,null,null,"千",null,null,null,null,null,"百",null,null,null,null,null,"十",null,null,null,null,null,"円"]
[null,"宿泊税",null,null,null,null,null,null,"税額",null,null,null,null,null,null,null,null,null,null,null,null,null,null,null,null,null,null,null,null,null,{"$f":"+IF(宿泊税納入申告書!$CE$42=\"￥\",\"\",宿泊税納入申告書!$CE$42)","v":""},null,null,null,null,null,{"$f":"+IF(宿泊税納入申告書!$CF$42=\"￥\",\"\",宿泊税納入申告書!$CF$42)","v":""},null,null,null,null,null,{"$f":"+IF(宿泊税納入申告書!$CG$42=\"￥\",\"\",宿泊税納入申告書!$CG$42)","v":""},null,null,null,null,null,{"$f":"+IF(宿泊税納入申告書!$CH$42=\"￥\",\"\",宿泊税納入申告書!$CH$42)","v":""},null,null,null,null,null,{"$f":"+IF(宿泊税納入申告書!$CI$42=\"￥\",\"\",宿泊税納入申告書!$CI$42)","v":""},null,null,null,null,null,{"$f":"+IF(宿泊税納入申告書!$CJ$42=\"￥\",\"\",宿泊税納入申告書!$CJ$42)","v":""},null,null,null,null,null,{"$f":"+IF(宿泊税納入申告書!$CK$42=\"￥\",\"\",宿泊税納入申告書!$CK$42)","v":""},null,null,null,null,null,{"$f":"+IF(宿泊税納入申告書!$CL$42=\"￥\",\"\",宿泊税納入申告書!$CL$42)","v":""},null,null,null,null,null,{"$f":"+IF(宿泊税納入申告書!$CM$42=\"￥\",\"\",宿泊税納入申告書!$CM$42)","v":""},null,null,null,null,null,{"$f":"+IF(宿泊税納入申告書!$CN$42=\"￥\",\"\",宿泊税納入申告書!$CN$42)","v":""},null,null,null,null,null,{"$f":"+IF(宿泊税納入申告書!$CO$42=\"￥\",\"\",宿泊税納入申告書!$CO$42)","v":""},null,null,null,null,null,null,null,"宿泊税",null,null,null,null,null,null,"税額",null,null,null,null,null,null,null,null,null,null,null,null,null,null,null,null,null,null,null,null,null,{"$f":"+IF(宿泊税納入申告書!$CE$42=\"￥\",\"\",宿泊税納入申告書!$CE$42)","v":""},null,null,null,null,null,{"$f":"+IF(宿泊税納入申告書!$CF$42=\"￥\",\"\",宿泊税納入申告書!$CF$42)","v":""},null,null,null,null,null,{"$f":"+IF(宿泊税納入申告書!$CG$42=\"￥\",\"\",宿泊税納入申告書!$CG$42)","v":""},null,null,null,null,null,{"$f":"+IF(宿泊税納入申告書!$CH$42=\"￥\",\"\",宿泊税納入申告書!$CH$42)","v":""},null,null,null,null,null,{"$f":"+IF(宿泊税納入申告書!$CI$42=\"￥\",\"\",宿泊税納入申告書!$CI$42)","v":""},null,null,null,null,null,{"$f":"+IF(宿泊税納入申告書!$CJ$42=\"￥\",\"\",宿泊税納入申告書!$CJ$42)","v":""},null,null,null,null,null,{"$f":"+IF(宿泊税納入申告書!$CK$42=\"￥\",\"\",宿泊税納入申告書!$CK$42)","v":""},null,null,null,null,null,{"$f":"+IF(宿泊税納入申告書!$CL$42=\"￥\",\"\",宿泊税納入申告書!$CL$42)","v":""},null,null,null,null,null,{"$f":"+IF(宿泊税納入申告書!$CM$42=\"￥\",\"\",宿泊税納入申告書!$CM$42)","v":""},null,null,null,null,null,{"$f":"+IF(宿泊税納入申告書!$CN$42=\"￥\",\"\",宿泊税納入申告書!$CN$42)","v":""},null,null,null,null,null,{"$f":"+IF(宿泊税納入申告書!$CO$42=\"￥\",\"\",宿泊税納入申告書!$CO$42)","v":""},null,null,null,null,null,null,null,"宿泊税",null,null,null,null,null,null,"税額",null,null,null,null,null,null,null,null,null,null,null,null,null,null,null,null,null,null,null,null,null,{"$f":"+IF(宿泊税納入申告書!$CE$42=\"￥\",\"\",宿泊税納入申告書!$CE$42)","v":""},null,null,null,null,null,{"$f":"+IF(宿泊税納入申告書!$CF$42=\"￥\",\"\",宿泊税納入申告書!$CF$42)","v":""},null,null,null,null,null,{"$f":"+IF(宿泊税納入申告書!$CG$42=\"￥\",\"\",宿泊税納入申告書!$CG$42)","v":""},null,null,null,null,null,{"$f":"+IF(宿泊税納入申告書!$CH$42=\"￥\",\"\",宿泊税納入申告書!$CH$42)","v":""},null,null,null,null,null,{"$f":"+IF(宿泊税納入申告書!$CI$42=\"￥\",\"\",宿泊税納入申告書!$CI$42)","v":""},null,null,null,null,null,{"$f":"+IF(宿泊税納入申告書!$CJ$42=\"￥\",\"\",宿泊税納入申告書!$CJ$42)","v":""},null,null,null,null,null,{"$f":"+IF(宿泊税納入申告書!$CK$42=\"￥\",\"\",宿泊税納入申告書!$CK$42)","v":""},null,null,null,null,null,{"$f":"+IF(宿泊税納入申告書!$CL$42=\"￥\",\"\",宿泊税納入申告書!$CL$42)","v":""},null,null,null,null,null,{"$f":"+IF(宿泊税納入申告書!$CM$42=\"￥\",\"\",宿泊税納入申告書!$CM$42)","v":""},null,null,null,null,null,{"$f":"+IF(宿泊税納入申告書!$CN$42=\"￥\",\"\",宿泊税納入申告書!$CN$42)","v":""},null,null,null,null,null,{"$f":"+IF(宿泊税納入申告書!$CO$42=\"￥\",\"\",宿泊税納入申告書!$CO$42)","v":""}]
[null,null,null,null,null,null,null,null,"延滞金",null,null,null,null,null,null,null,null,null,null,null,null,null,null,null,null,null,null,null,null,null,null,null,null,null,null,null,null,null,null,null,null,null,null,null,null,null,null,null,null,null,null,null,null,null,null,null,null,null,null,null,null,null,null,null,null,null,null,null,null,null,null,null,null,null,null,null,null,null,null,null,null,null,null,null,null,null,null,null,null,null,null,null,null,null,null,null,null,null,null,null,null,null,null,null,null,"延滞金",null,null,null,null,null,null,null,null,null,null,null,null,null,null,null,null,null,null,null,null,null,null,null,null,null,null,null,null,null,null,null,null,null,null,null,null,null,null,null,null,null,null,null,null,null,null,null,null,null,null,null,null,null,null,null,null,null,null,null,null,null,null,null,null,null,null,null,null,null,null,null,null,null,null,null,null,null,null,null,null,null,null,null,null,null,null,null,null,null,null,null,null,null,null,null,null,"延滞金"]
[null,"合計額",null,null,null,null,null,null,null,null,null,null,null,null,null,null,null,null,null,null,null,null,null,null,null,null,null,null,null,null,{"$f":"+宿泊税納入申告書!$CE$42","v":""},null,null,null,null,null,{"$f":"+宿泊税納入申告書!$CF$42","v":""},null,null,null,null,null,{"$f":"+宿泊税納入申告書!$CG$42","v":""},null,null,null,null,null,{"$f":"+宿泊税納入申告書!$CH$42","v":""},null,null,null,null,null,{"$f":"+宿泊税納入申告書!$CI$42","v":""},null,null,null,null,null,{"$f":"+宿泊税納入申告書!$CJ$42","v":""},null,null,null,null,null,{"$f":"+宿泊税納入申告書!$CK$42","v":""},null,null,null,null,null,{"$f":"+宿泊税納入申告書!$CL$42","v":""},null,null,null,null,null,{"$f":"+宿泊税納入申告書!$CM$42","v":""},null,null,null,null,null,{"$f":"+宿泊税納入申告書!$CN$42","v":""},null,null,null,null,null,{"$f":"+宿泊税納入申告書!$CO$42","v":""},null,null,null,null,null,null,null,"合計額",null,null,null,null,null,null,null,null,null,null,null,null,null,null,null,null,null,null,null,null,null,null,null,null,null,null,null,null,{"$f":"+宿泊税納入申告書!$CE$42","v":""},null,null,null,null,null,{"$f":"+宿泊税納入申告書!$CF$42","v":""},null,null,null,null,null,{"$f":"+宿泊税納入申告書!$CG$42","v":""},null,null,null,null,null,{"$f":"+宿泊税納入申告書!$CH$42","v":""},null,null,null,null,null,{"$f":"+宿泊税納入申告書!$CI$42","v":""},null,null,null,null,null,{"$f":"+宿泊税納入申告書!$CJ$42","v":""},null,null,null,null,null,{"$f":"+宿泊税納入申告書!$CK$42","v":""},null,null,null,null,null,{"$f":"+宿泊税納入申告書!$CL$42","v":""},null,null,null,null,null,{"$f":"+宿泊税納入申告書!$CM$42","v":""},null,null,null,null,null,{"$f":"+宿泊税納入申告書!$CN$42","v":""},null,null,null,null,null,{"$f":"+宿泊税納入申告書!$CO$42","v":""},null,null,null,null,null,null,null,"合計額",null,null,null,null,null,null,null,null,null,null,null,null,null,null,null,null,null,null,null,null,null,null,null,null,null,null,null,null,{"$f":"+宿泊税納入申告書!$CE$42","v":""},null,null,null,null,null,{"$f":"+宿泊税納入申告書!$CF$42","v":""},null,null,null,null,null,{"$f":"+宿泊税納入申告書!$CG$42","v":""},null,null,null,null,null,{"$f":"+宿泊税納入申告書!$CH$42","v":""},null,null,null,null,null,{"$f":"+宿泊税納入申告書!$CI$42","v":""},null,null,null,null,null,{"$f":"+宿泊税納入申告書!$CJ$42","v":""},null,null,null,null,null,{"$f":"+宿泊税納入申告書!$CK$42","v":""},null,null,null,null,null,{"$f":"+宿泊税納入申告書!$CL$42","v":""},null,null,null,null,null,{"$f":"+宿泊税納入申告書!$CM$42","v":""},null,null,null,null,null,{"$f":"+宿泊税納入申告書!$CN$42","v":""},null,null,null,null,null,{"$f":"+宿泊税納入申告書!$CO$42","v":""}]
[null,"納期限",null,null,null,null,null,null,null,null,null,null,null,null,null,null,null,null,null,null,null,null,"令和",null,null,null,null,null,null,null,{"$f":"+IF(宿泊税月計表!$GT76=0,\"\",宿泊税月計表!$GT76)","v":""},null,null,null,null,null,null,"年",null,null,{"$f":"+IF(宿泊税月計表!$GV76=0,\"\",宿泊税月計表!$GV76)","v":""},null,null,null,null,null,null,"月",null,null,{"$f":"+IF(宿泊税月計表!$GX76=0,\"\",宿泊税月計表!$GX76)","v":""},null,null,null,null,null,null,"日",null,null,"領収日付印",null,null,null,null,null,null,null,null,null,null,null,null,null,null,null,null,null,null,null,null,null,null,null,null,null,null,null,null,null,null,null,null,null,null,null,null,null,"納期限",null,null,null,null,null,null,null,null,null,null,null,null,null,null,null,null,null,null,null,null,"令和",null,null,null,null,null,null,null,{"$f":"+IF(宿泊税月計表!$GT76=0,\"\",宿泊税月計表!$GT76)","v":""},null,null,null,null,null,null,"年",null,null,{"$f":"+IF(宿泊税月計表!$GV76=0,\"\",宿泊税月計表!$GV76)","v":""},null,null,null,null,null,null,"月",null,null,{"$f":"+IF(宿泊税月計表!$GX76=0,\"\",宿泊税月計表!$GX76)","v":""},null,null,null,null,null,null,"日",null,null,"領収日付印",null,null,null,null,null,null,null,null,null,null,null,null,null,null,null,null,null,null,null,null,null,null,null,null,null,null,null,null,null,null,null,null,null,null,null,null,null,"納期限",null,null,null,null,null,null,null,null,null,null,null,null,null,null,null,null,null,null,null,null,"令和",null,null,null,null,null,null,null,{"$f":"+IF(宿泊税月計表!$GT76=0,\"\",宿泊税月計表!$GT76)","v":""},null,null,null,null,null,null,"年",null,null,{"$f":"+IF(宿泊税月計表!$GV76=0,\"\",宿泊税月計表!$GV76)","v":""},null,null,null,null,null,null,"月",null,null,{"$f":"+IF(宿泊税月計表!$GX76=0,\"\",宿泊税月計表!$GX76)","v":""},null,null,null,null,null,null,"日",null,null,"領収日付印"]
[null,"指定金融機関名",null,null,null,null,null,null,null,null,null,null,null,null,null,null,null,null,null,null,null,null,"株式会社北洋銀行",null,null,null,null,null,null,null,null,null,null,null,null,null,null,null,null,null,null,null,null,null,null,null,null,null,null,null,null,null,null,null,null,null,null,null,null,null,null,null,null,null,null,null,null,null,null,null,null,null,null,null,null,null,null,null,null,null,null,null,null,null,null,null,null,null,null,null,null,null,null,null,null,null,null,null,"上記のとおり納入します。",null,null,null,null,null,null,null,null,null,null,null,null,null,null,null,null,null,null,null,null,null,null,null,null,null,null,null,null,null,null,null,null,null,null,null,null,null,null,null,null,null,null,null,null,null,null,null,null,null,null,null,null,null,null,null,null,null,null,null,null,null,null,null,null,null,null,null,null,null,null,null,null,null,null,null,null,null,null,null,null,null,null,null,null,null,null,null,null,null,null,null,null,null,null,null,null,"上記のとおり納入してください｡"]
[null,"(取りまとめ店)",null,null,null,null,null,null,null,null,null,null,null,null,null,null,null,null,null,null,null,null,"（函館中央支店）"]
[null,"取りまとめ局",null,null,null,null,null,null,null,null,null,null,null,null,null,null,null,null,null,null,null,null,"小樽貯金事務センター"]
[null,"上記の金額を収納したので通知します。"]
[null,"\n(受付局→取りまとめ局→函館市)",null,null,null,null,null,null,null,null,null,null,null,null,null,null,null,null,null,null,null,null,null,null,null,null,null,null,null,null,null,null,null,null,null,null,null,null,null,null,null,null,null,null,null,null,null,null,null,null,null,null,null,null,null,null,null,null,null,null,null,null,null,null,null,null,null,null,null,null,null,null,null,null,null,null,null,null,null,null,null,null,null,null,null,null,null,null,null,null,null,null,null,null,null,null,null,null,"\n(金融機関または郵便局保管)",null,null,null,null,null,null,null,null,null,null,null,null,null,null,null,null,null,null,null,null,null,null,null,null,null,null,null,null,null,null,null,null,null,null,null,null,null,null,null,null,null,null,null,null,null,null,null,null,null,null,null,null,null,null,null,null,null,null,null,null,null,null,null,null,null,null,null,null,null,null,null,null,null,null,null,null,null,null,null,null,null,null,null,null,null,null,null,null,null,null,null,null,null,null,null,null,"函館市会計管理者\n（納入者保管）"]